Workbook

Sheet TH
B1: Version | C1: = | D1: 1.4
B3: Driver Dimensions
B4: Frame Width | C4: = | D4: =21.5*2.54 -> 54.61 | E4: cm | F4: =D4/2.54 -> 21.5 | G4: in | I4: Plot
B5: Mounting Width | C5: = | D5: =20*2.54 -> 50.8 | E5: cm | F5: =D5/2.54 -> 20 | G5: in | H5: x | I5: Panel A (bottom)
B6: Mounting Depth | C6: = | D6: =10.3*2.54 -> 26.162 | E6: cm | F6: =D6/2.54 -> 10.3 | G6: in | H6: x | I6: Panel B (top)
B7: Magnet Width | C7: = | D7: 21 | E7: cm | F7: =D7/2.54 -> 8.267716535 | G7: in | H7: x | I7: Panel C (sides)
B8: Magnet Height | C8: = | D8: 8 | E8: cm | F8: =D8/2.54 -> 3.149606299 | G8: in | H8: x | I8: Panel D (front)
H9: x | I9: Panel E (back)
B10: Box Dimensions | H10: x | I10: Panel F (baffle)
B11: Height | C11: = | D11: =36*2.54 -> 91.44 | E11: cm | F11: =D11/2.54 -> 36 | G11: in | H11: x | I11: Panel G (2nd inside)
B12: Width | C12: = | D12: =24*2.54 -> 60.96 | E12: cm | F12: =D12/2.54 -> 24 | G12: in | H12: x | I12: Panel H (3rd inside)
B13: Depth | C13: = | D13: =36*2.54 -> 91.44 | E13: cm | F13: =D13/2.54 -> 36 | G13: in | H13: x | I13: Panel I (4th inside)
H14: x | I14: Panel J (5th inside)
B15: driver offset | C15: = | D15: 30 | E15: cm | F15: =D15/2.54 -> 11.81102362 | G15: in
I16: Plot
B17: HornResp Params | H17: x | I17: Advanced Centerline
B18: S1 | C18: = | D18: 403 | E18: cm^2 | H18: x | I18: Sample points
B19: S2 | C19: = | D19: =Path!D4 -> 403 | E19: cm^2 | H19: x | I19: Driver
B20: S3 | C20: = | D20: =Path!D5 -> 1813.631248 | E20: cm^2 | H20: o | I20: Guides
B21: S4 | C21: = | D21: =Path!D6 -> 1943.857231 | E21: cm^2
B22: S5 | C22: = | D22: =Path!D7 -> 2082.926537 | E22: cm^2
B23: L12 | C23: = | D23: =Path!G4 -> 31.57748116 | E23: cm
B24: L23 | C24: = | D24: =Path!G5 -> 294.90217 | E24: cm
B25: L34 | C25: = | D25: =Path!G6 -> 27.28122789 | E25: cm
B26: L45 | C26: = | D26: =Path!G7 -> 29.13382831 | E26: cm
B27: L (actual) | C27: = | D27: =Path!G9 -> 382.8947074 | E27: cm | K27: =ABS(G45)+ABS(G46)+ABS(G47)+ABS(G48)+ABS(G49)+ABS(G50)+ABS(G51)+ABS(G52)+ABS(G53)+ABS(E62) -> 0.001375928694
B29: Expansion Type
B30: L12 Expansion | C30: = | D30: Par
B31: L23 Expansion | C31: = | D31: Exp | F31: Par, Con, Exp, Hyp
B32: L34 Expansion | C32: = | D32: Par
B33: L45 Expansion | C33: = | D33: Par
B34: Ideal box width | C34: = | D34: =D22^0.5+2*D45 -> 49.43909001 | E34: cm
B36: Horn Design
B37: Vol. (net) | C37: = | D37: =D38-I56 -> 427.0910131 | E37: l. | F37: =(D37*1000/2.54^3)/1728 -> 15.08257679 | G37: cu.ft.
B38: Vol. (gross) | C38: = | D38: =D11*D12*D13/1000 -> 509.7032387 | E38: l. | F38: =(D38*1000/2.54^3)/1728 -> 18 | G38: cu.ft.
B40: Expansion 1 | C40: = | D40: 4.782026022 | E40: =Path!I7 -> 4.782017908
B41: Panels | D41: p | E41: x | F41: y | H41: # | I41: v
B42: =I5 -> Panel A (bottom) | D42: 1.9 | E42: =D12-2*D45 -> 57.16 | F42: =Panels!K7 -> 91.44 | H42: 1 | I42: =F42*E42*D42*H42/10^3 -> 9.93074976
B43: Panel B (top) | D43: 1.9 | E43: =D12-2*D45 -> 57.16 | F43: =Panels!K13 -> 91.44 | H43: 1 | I43: =F43*E43*D43*H43/10^3 -> 9.93074976
B44: =I9 -> Panel E (back) | D44: 1.9 | E44: =E47 -> 57.16 | F44: =Panels!K31 -> 87.64 | H44: 1 | I44: =F44*E44*D44*H44/10^3 -> 9.51805456
B45: =I7 -> Panel C (sides) | D45: 1.9 | E45: =D13 -> 91.44 | F45: =D11 -> 91.44 | H45: 2 | I45: 31.77283968
B46: =I8 -> Panel D (front) | D46: 1.9 | E46: =E47 -> 57.16 | F46: 49.26796463 | G46: =Path!AD105 -> -5.135844549e-05 | H46: 1 | I46: 5.350698031
B47: Panel F (baffle) | D47: 1.9 | E47: =E42 -> 57.16 | F47: 62.77748116 | G47: =Path!AD117 -> -0.0001204341631 | H47: 1 | I47: 6.817885564
B48: Panel G (2nd inside) | D48: 1.2 | E48: =E47 -> 57.16 | F48: 32.93164957 | G48: =Path!AD78 -> -0.0004507398946 | H48: 1 | I48: 2.258847707
B49: Panel H (3rd inside) | D49: 1.2 | E49: =E47 -> 57.16 | F49: 52.20934698 | G49: =Path!AD45 -> 2.398786148e-05 | H49: 1 | I49: 3.581143528
F50: 8.250384885 | G50: =Path!D3-TH!D18 -> -1.193711796e-12
B51: =I13 -> Panel I (4th inside) | D51: 1.2 | E51: =E42 -> 57.16 | F51: 50.31573624 | G51: =Path!AD69 -> 5.482456697e-05 | H51: 1 | I51: 3.45125698
F52: 15.86217138 | G52: =Path!AD54 -> 0.0006718781152
B53: =I14 -> Panel J (5th inside) | D53: 1.2 | E53: =E44 -> 57.16 | F53: 48.74866442 | G53: =Path!AD93 -> 3.644413482e-08 | H53: 1 | I53: =F53*E53*D53*H53/10^3 -> 3.34376839
H56: Pnl Vol | I56: =SUM(I42:I51) -> 82.61222557 | J56: l
B58: Cone Volume | C58: = | D58: 7400 | E58: cm^3
B59: Cone Vol. Adj. (S2) | C59: = | D59: 0 | E59: cm^3
B60: Cone Area Adj. (S2) | C60: = | D60: =D58-D59 -> 7400 | E60: cm^2
B62: Hyperbolic T | C62: = | D62: 0.4920999671 | E62: =Path!R3 -> 2.669201422e-06
B65: Filename | C65: = | D65: I:\Users\Brian.Steele\OneDrive\Hornresp\Import\BOXPLAN.TXT
B67: ID | C67: = | D67: 29.00 | J67: =CONCATENATE(B67,C67,D67) -> ID=29.00
B68: Ang | C68: = | D68: 2.0 x PI | J68: =CONCATENATE(B68,C68,D68) -> Ang=2.0 x PI
B69: Eg | C69: = | D69: 2.83 | J69: Eg=2.83
B70: Rg | C70: = | D70: 0 | J70: Rg=0
B71: Fta | C71: = | D71: 0 | J71: Fta=0
B72: S1 | C72: = | D72: =ROUND(D18,0) -> 403 | J72: S1=403
B73: S2 | C73: = | D73: =ROUND(D19,0) -> 403 | J73: S2=403
B74: =D30 -> Par | C74: = | D74: =ROUND(D23,1) -> 31.6 | J74: Par=31.6
B75: F12 | C75: = | D75: 0 | J75: F12=0
B76: S2 | C76: = | D76: =ROUND(D73,0) -> 403 | J76: S2=403
B77: S3 | C77: = | D77: =ROUND(D20,0) -> 1814 | J77: S3=1814
B78: =D31 -> Exp | C78: = | D78: =ROUND(D24,1) -> 294.9 | J78: Exp=294.9
B79: F23 | C79: = | D79: 0 | J79: F23=0
B80: S3 | C80: = | D80: =D77 -> 1814 | J80: S3=1814
B81: S4 | C81: = | D81: =ROUND(D21,0) -> 1944 | J81: S4=1944
B82: =D32 -> Par | C82: = | D82: =ROUND(D25,1) -> 27.3 | J82: Par=27.3
B83: F34 | C83: = | D83: 0 | J83: F34=0
B84: S4 | C84: = | D84: =D81 -> 1944 | J84: S4=1944
B85: S5 | C85: = | D85: =ROUND(D22,0) -> 2083 | J85: S5=2083
B86: =D33 -> Par | C86: = | D86: =ROUND(D26,1) -> 29.1 | J86: Par=29.1
B87: F45 | C87: = | D87: 0 | J87: F45=0
B88: Sd | C88: = | D88: 1680 | J88: Sd=1680
B89: Bl | C89: = | D89: 32.57 | J89: Bl=32.57
B90: Cms | C90: = | D90: 5.35e-05 | J90: Cms=0.0000535
B91: Rms | C91: = | D91: 13.2 | J91: Rms=13.2
B92: Mmd | C92: = | D92: 422.82 | J92: Mmd=422.82
B93: Le | C93: = | D93: 1.5 | J93: Le=1.5
B94: Re | C94: = | D94: 3.4 | J94: Re=3.4
B95: TH | C95: = | D95: 1 | J95: TH=1
B96: Vrc | C96: = | D96: 0 | J96: Vrc=0
B97: Lrc | C97: = | D97: 0 | J97: Lrc=0
B98: Ap1 | C98: = | D98: 0 | J98: Ap1=0
B99: Lp | C99: = | D99: 0 | J99: Lp=0
B100: Vtc | C100: = | D100: =D60 -> 7400 | J100: Vtc=7400
B101: Atc | C101: = | D101: =D88 -> 1680 | J101: Atc=1680
B102: Pmax | C102: = | D102: 2000 | J102: Pmax=2000
B103: Xmax | C103: = | D103: 15 | J103: Xmax=15
B104: Comment | C104: = | D104: BOXPLAN-Export Othorn TH | J104: Comment=BOXPLAN-Export Othorn TH

Sheet Panels
C5: x | D5: y | F5: x | G5: y | I5: dx | J5: dy | L5: A | M5: B
A6: =TH!I5 -> Panel A (bottom) | C6: =C19 -> 0 | D6: =D19 -> 91.44 | F6: =IF($B10="x",C6,TH!$D$211) -> 0 | G6: =IF($B10="x",D6,TH!$D$212) -> 91.44 | O6: Expansion | P6: Cos | Q6: Sin | R6: Cos | S6: Tan | T6: 1/2 | U6: Cos | V6: Sin | W6: Cos | X6: Tan
C7: =C6 -> 0 | D7: =D20 -> 0 | F7: =IF($B10="x",C7,TH!$D$211) -> 0 | G7: =IF($B10="x",D7,TH!$D$212) -> 0 | I7: =C6-C7 -> 0 | J7: 91.44 | K7: =(I7^2+J7^2)^0.5 -> 91.44 | O7: =TH!$D$40 -> 4.782026022 | P7: =COS($O7*PI()/180) -> 0.9965190604 | Q7: =SIN($O7*PI()/180) -> 0.08336523432 | R7: =P7 -> 0.9965190604 | S7: =TAN($O7*PI()/180) -> 0.08365643733 | T7: =O7/2 -> 2.391013011 | U7: =COS($T7*PI()/(180*2)) -> 0.9997823228 | V7: =SIN($T7*PI()/(180*2)) -> 0.02086401074 | W7: =U7 -> 0.9997823228 | X7: =TAN($T7*PI()/(180*2)) -> 0.02086855335
C8: =C7+TH!D42 -> 1.9 | D8: =D7 -> 0 | F8: =IF($B10="x",C8,TH!$D$211) -> 1.9 | G8: =IF($B10="x",D8,TH!$D$212) -> 0 | I8: -1.9 | J8: 0 | K8: =(I8^2+J8^2)^0.5 -> 1.9
C9: =C8 -> 1.9 | D9: =D6 -> 91.44 | F9: =IF($B10="x",C9,TH!$D$211) -> 1.9 | G9: =IF($B10="x",D9,TH!$D$212) -> 91.44 | I9: 0 | J9: -91.44 | K9: =(I9^2+J9^2)^0.5 -> 91.44
A10: Plot? | B10: =TH!H5 -> x | C10: =C6 -> 0 | D10: =D6 -> 91.44 | F10: =IF($B10="x",C10,TH!$D$211) -> 0 | G10: =IF($B10="x",D10,TH!$D$212) -> 91.44 | I10: 1.9 | J10: 0 | K10: =(I10^2+J10^2)^0.5 -> 1.9
A12: =TH!I6 -> Panel B (top) | C12: =C18 -> 91.44 | D12: =D18 -> 91.44 | F12: =IF($B16="x",C12,TH!$D$211) -> 91.44 | G12: =IF($B16="x",D12,TH!$D$212) -> 91.44
C13: =C12 -> 91.44 | D13: =D20 -> 0 | F13: =IF($B16="x",C13,TH!$D$211) -> 91.44 | G13: =IF($B16="x",D13,TH!$D$212) -> 0 | I13: =C12-C13 -> 0 | J13: 91.44 | K13: =(I13^2+J13^2)^0.5 -> 91.44
C14: =C13-TH!D42 -> 89.54 | D14: =D13 -> 0 | F14: =IF($B16="x",C14,TH!$D$211) -> 89.54 | G14: =IF($B16="x",D14,TH!$D$212) -> 0 | I14: 1.9 | J14: 0 | K14: =(I14^2+J14^2)^0.5 -> 1.9 | S14: x | T14: y | U14: dX | V14: dY | W14: l | X14: Delta
C15: =C14 -> 89.54 | D15: =D12 -> 91.44 | F15: =IF($B16="x",C15,TH!$D$211) -> 89.54 | G15: =IF($B16="x",D15,TH!$D$212) -> 91.44 | I15: 0 | J15: -91.44 | K15: =(I15^2+J15^2)^0.5 -> 91.44 | S15: =C38 -> 33.14518973 | T15: =D38 -> 62.40056259
A16: Plot? | B16: =TH!H6 -> x | C16: =C12 -> 91.44 | D16: =D12 -> 91.44 | F16: =IF($B16="x",C16,TH!$D$211) -> 91.44 | G16: =IF($B16="x",D16,TH!$D$212) -> 91.44 | I16: -1.9 | J16: 0 | K16: =(I16^2+J16^2)^0.5 -> 1.9 | S16: =C39 -> 38.37864915 | T16: =D39 -> -0.1583939452 | U16: =S15-S16 -> -5.233459427 | V16: =T15-T16 -> 62.55895654 | W16: =(U16^2+V16^2)^0.5 -> 62.77748116 | X16: =V16/U16 -> -11.95365272
A18: =TH!I7 -> Panel C (sides) | C18: =TH!F45 -> 91.44 | D18: =TH!E45 -> 91.44 | F18: =IF($B22="x",C18,TH!$D$211) -> 91.44 | G18: =IF($B22="x",D18,TH!$D$212) -> 91.44 | S18: =IF(TH!$H$20="x",TH!$D$56*SIN(ATAN($X$16)),0) -> 0 | T18: =IF(TH!$H$20="x",TH!$D$56*COS(ATAN($X$16)),0) -> 0
C19: =TH!D211 -> 0 | D19: =D18 -> 91.44 | F19: =IF($B22="x",C19,TH!$D$211) -> 0 | G19: =IF($B22="x",D19,TH!$D$212) -> 91.44 | I19: =C18-C19 -> 91.44 | J19: 0 | K19: =(I19^2+J19^2)^0.5 -> 91.44 | Q19: Driver
C20: =C19 -> 0 | D20: =TH!D212 -> 0 | F20: =IF($B22="x",C20,TH!$D$211) -> 0 | G20: =IF($B22="x",D20,TH!$D$212) -> 0 | I20: 0 | J20: 91.44 | K20: =(I20^2+J20^2)^0.5 -> 91.44 | Q20: Face (1) | R20: =TH!$H$19 -> x | S20: =S21+(TH!$D$4*COS(ATAN($X$16)))/2+S18 -> 38.15397985 | T20: =T21+(TH!$D$4*SIN(ATAN($X$16)))/2 -> 2.527224923 | U20: =IF(R20="x",S20,0) -> 38.15397985 | V20: =IF(R20="x",T20,0) -> 2.527224923
C21: =C18 -> 91.44 | D21: =D20 -> 0 | F21: =IF($B22="x",C21,TH!$D$211) -> 91.44 | G21: =IF($B22="x",D21,TH!$D$212) -> 0 | I21: -91.44 | J21: 0 | K21: =(I21^2+J21^2)^0.5 -> 91.44 | R21: =TH!$H$19 -> x | S21: =S16+U16*TH!D15/W16-S18 -> 35.87769212 | T21: =T16+(V16*TH!D15/W16)-T18 -> 29.73717787 | U21: 35.87769212 | V21: 29.73717787
A22: Plot? | B22: =TH!H7 -> x | C22: =C18 -> 91.44 | D22: =D18 -> 91.44 | F22: =IF($B22="x",C22,TH!$D$211) -> 91.44 | G22: =IF($B22="x",D22,TH!$D$212) -> 91.44 | I22: 0 | J22: -91.44 | K22: =(I22^2+J22^2)^0.5 -> 91.44 | R22: =TH!$H$19 -> x | S22: =S21+TH!$D$6*SIN(ATAN($X$16)) -> 9.806760466 | T22: =T21-TH!$D$6*COS(ATAN($X$16)) -> 27.55617661 | U22: 9.806760466 | V22: 27.55617661
R23: =TH!$H$19 -> x | S23: =S22+TH!$D$7*COS(ATAN($X$16))/2 -> 10.68209543 | T23: =T22+TH!$D$7*SIN(ATAN($X$16))/2 -> 17.09272647 | U23: 10.68209543 | V23: 17.09272647
A24: =TH!I8 -> Panel D (front) | C24: =C14-TH!F46 -> 40.27203537 | D24: =D20+TH!D46 -> 1.9 | F24: =IF($B28="x",C24,TH!$D$211) -> 40.27203537 | G24: =IF($B28="x",D24,TH!$D$212) -> 1.9 | R24: =TH!$H$19 -> x | S24: =S23-TH!$D$8*SIN(ATAN($X$16)) -> 18.65424791 | T24: =T23+TH!$D$8*COS(ATAN($X$16)) -> 17.75964835 | U24: 18.65424791 | V24: 17.75964835
C25: =C14 -> 89.54 | D25: =D24 -> 1.9 | F25: =IF($B28="x",C25,TH!$D$211) -> 89.54 | G25: =IF($B28="x",D25,TH!$D$212) -> 1.9 | I25: =C24-C25 -> -49.26796463 | J25: 0 | K25: =(I25^2+J25^2)^0.5 -> 49.26796463 | R25: =TH!$H$19 -> x | S25: =S21+TH!$D$5*COS(ATAN($X$16))/2 -> 37.99516908 | T25: =T21+(TH!$D$5)*SIN(ATAN($X$16))/2 -> 4.425593733 | U25: 37.99516908 | V25: 4.425593733
C26: =C25 -> 89.54 | D26: =D25-TH!D46 -> 0 | F26: =IF($B28="x",C26,TH!$D$211) -> 89.54 | G26: =IF($B28="x",D26,TH!$D$212) -> 0 | I26: 0 | J26: 1.9 | K26: =(I26^2+J26^2)^0.5 -> 1.9
C27: =C24 -> 40.27203537 | D27: =D26 -> 0 | F27: =IF($B28="x",C27,TH!$D$211) -> 40.27203537 | G27: =IF($B28="x",D27,TH!$D$212) -> 0 | I27: 49.26796463 | J27: 0 | K27: =(I27^2+J27^2)^0.5 -> 49.26796463 | R27: =TH!$H$19 -> x | S27: =S28-(TH!$D$4*COS(ATAN($X$16)))/2 -> 33.6014044 | T27: =T28-(TH!$D$4*SIN(ATAN($X$16)))/2 -> 56.94713081 | U27: =IF(R27="x",S27,0) -> 33.6014044 | V27: =IF(R27="x",T27,0) -> 56.94713081
A28: Plot? | B28: =TH!H8 -> x | C28: =C24 -> 40.27203537 | D28: =D24 -> 1.9 | F28: =IF($B28="x",C28,TH!$D$211) -> 40.27203537 | G28: =IF($B28="x",D28,TH!$D$212) -> 1.9 | I28: 0 | J28: -1.9 | K28: =(I28^2+J28^2)^0.5 -> 1.9 | R28: =TH!$H$19 -> x | S28: =S21 -> 35.87769212 | T28: =T21 -> 29.73717787 | U28: 35.87769212 | V28: 29.73717787
R29: =TH!$H$19 -> x | S29: =S22 -> 9.806760466 | T29: =T22 -> 27.55617661 | U29: 9.806760466 | V29: 27.55617661
A30: =TH!I9 -> Panel E (back) | C30: =C19+TH!D42 -> 1.9 | D30: =D18 -> 91.44 | F30: =IF($B34="x",C30,TH!$D$211) -> 1.9 | G30: =IF($B34="x",D30,TH!$D$212) -> 91.44 | R30: =TH!$H$19 -> x | S30: =S29-TH!$D$7*COS(ATAN($X$16))/2 -> 8.931425505 | T30: =T29-TH!$D$7*SIN(ATAN($X$16))/2 -> 38.01962674 | U30: 8.931425505 | V30: 38.01962674
C31: =C18-TH!D43 -> 89.54 | D31: =D30 -> 91.44 | F31: =IF($B34="x",C31,TH!$D$211) -> 89.54 | G31: =IF($B34="x",D31,TH!$D$212) -> 91.44 | I31: =C30-C31 -> -87.64 | J31: 0 | K31: =(I31^2+J31^2)^0.5 -> 87.64 | R31: =TH!$H$19 -> x | S31: =S30-TH!$D$8*SIN(ATAN($X$16)) -> 16.90357799 | T31: =T30+TH!$D$8*COS(ATAN($X$16)) -> 38.68654861 | U31: 16.90357799 | V31: 38.68654861
C32: =C31 -> 89.54 | D32: =D31-TH!D44 -> 89.54 | F32: =IF($B34="x",C32,TH!$D$211) -> 89.54 | G32: =IF($B34="x",D32,TH!$D$212) -> 89.54 | I32: 0 | J32: 1.9 | K32: =(I32^2+J32^2)^0.5 -> 1.9 | R32: =TH!$H$19 -> x | S32: =S28-TH!$D$5*COS(ATAN($X$16))/2 -> 33.76021517 | T32: =T28-(TH!$D$5)*SIN(ATAN($X$16))/2 -> 55.048762 | U32: 33.76021517 | V32: 55.048762
C33: =C30 -> 1.9 | D33: =D32 -> 89.54 | F33: =IF($B34="x",C33,TH!$D$211) -> 1.9 | G33: =IF($B34="x",D33,TH!$D$212) -> 89.54 | I33: 87.64 | J33: 0 | K33: =(I33^2+J33^2)^0.5 -> 87.64
A34: Plot? | B34: =TH!H9 -> x | C34: =C33 -> 1.9 | D34: =D31 -> 91.44 | F34: =IF($B34="x",C34,TH!$D$211) -> 1.9 | G34: =IF($B34="x",D34,TH!$D$212) -> 91.44 | I34: 0 | J34: -1.9 | K34: =(I34^2+J34^2)^0.5 -> 1.9 | R34: =TH!$H$19 -> x | S34: =S31 -> 16.90357799 | T34: =T31 -> 38.68654861 | U34: =IF(R34="x",S34,0) -> 16.90357799 | V34: =IF(R34="x",T34,0) -> 38.68654861
R35: =TH!$H$19 -> x | S35: =S24 -> 18.65424791 | T35: =T24 -> 17.75964835 | U35: =IF(R35="x",S35,0) -> 18.65424791 | V35: =IF(R35="x",T35,0) -> 17.75964835
A36: =TH!I10 -> Panel F (baffle) | C36: =C27 -> 40.27203537 | D36: =D27 -> 0 | F36: =IF($B40="x",C36,TH!$D$211) -> 40.27203537 | G36: =IF($B40="x",D36,TH!$D$212) -> 0 | L36: =IF(C37=C36,"",(D37-D36)/(C37-C36)) -> -11.95365272 | M36: =IF(L36="","",D36-L36*C36) -> 481.3979253
A37: Angle | B37: =O7 -> 4.782026022 | C37: =C36-TH!F47*B39 -> 35.03857594 | D37: =D36+TH!F47*A39 -> 62.55895654 | F37: =IF($B40="x",C37,TH!$D$211) -> 35.03857594 | G37: =IF($B40="x",D37,TH!$D$212) -> 62.55895654 | I37: =C36-C37 -> 5.233459427 | J37: -62.55895654 | K37: =(I37^2+J37^2)^0.5 -> 62.77748116 | L37: =IF(C38=C37,"",(D38-D37)/(C38-C37)) -> 0.08365643733 | M37: =IF(L37="","",D37-L37*C37) -> 59.62775411
A38: Cos | B38: Sin | C38: =C37-TH!D47*A39 -> 33.14518973 | D38: =D37-TH!D47*B39 -> 62.40056259 | F38: =IF($B40="x",C38,TH!$D$211) -> 33.14518973 | G38: =IF($B40="x",D38,TH!$D$212) -> 62.40056259 | I38: 1.893386215 | J38: 0.1583939452 | K38: =(I38^2+J38^2)^0.5 -> 1.9 | L38: =IF(C39=C38,"",(D39-D38)/(C39-C38)) -> -11.95365272 | M38: =IF(L38="","",D38-L38*C38) -> 458.6066501 | Q38: Graph Axes
A39: =COS(B37*PI()/180) -> 0.9965190604 | B39: =SIN(B37*PI()/180) -> 0.08336523432 | C39: =C38+TH!F47*B39 -> 38.37864915 | D39: =D38-TH!F47*A39 -> -0.1583939452 | F39: =IF($B40="x",C39,TH!$D$211) -> 38.37864915 | G39: =IF($B40="x",D39,TH!$D$212) -> -0.1583939452 | I39: -5.233459427 | J39: 62.55895654 | K39: =(I39^2+J39^2)^0.5 -> 62.77748116 | L39: =IF(C40=C39,"",(D40-D39)/(C40-C39)) -> 0.08365643733 | M39: =IF(L39="","",D39-L39*C39) -> -3.369015003 | S39: =MIN(C6:D34)-5 -> -5 | T39: =S39 -> -5
A40: Plot? | B40: =TH!H10 -> x | C40: =C36 -> 40.27203537 | D40: =D36 -> 0 | F40: =IF($B40="x",C40,TH!$D$211) -> 40.27203537 | G40: =IF($B40="x",D40,TH!$D$212) -> 0 | I40: -1.893386215 | J40: -0.1583939452 | K40: =(I40^2+J40^2)^0.5 -> 1.9 | S40: =S39 -> -5 | T40: =MAX(C6:D34) -> 91.44
A42: =TH!I11 -> Panel G (2nd inside) | C42: =C37 -> 35.03857594 | D42: =D37 -> 62.55895654 | F42: =IF($B46="x",C42,TH!$D$211) -> 35.03857594 | G42: =IF($B46="x",D42,TH!$D$212) -> 62.55895654 | L42: =IF(C43=C42,"",(D43-D42)/(C43-C42)) -> -11.95365272 | M42: =IF(L42="","",D42-L42*C42) -> 481.3979253 | S42: =S39 -> -5 | T42: =S42 -> -5
A43: Angle | B43: =O7 -> 4.782026022 | C43: =C42+TH!D48*B45 -> 35.13861422 | D43: =D42-TH!D48*A45 -> 61.36313367 | F43: =IF($B46="x",C43,TH!$D$211) -> 35.13861422 | G43: =IF($B46="x",D43,TH!$D$212) -> 61.36313367 | I43: =C42-C43 -> -0.1000382812 | J43: 1.195822872 | K43: =(I43^2+J43^2)^0.5 -> 1.2 | L43: =IF(C44=C43,"",(D44-D43)/(C44-C43)) -> 0.08365643733 | M43: =IF(L43="","",D43-L43*C43) -> 58.42356239 | S43: =T40 -> 91.44 | T43: =T42 -> -5
A44: Cos | B44: Sin | C44: =C43+TH!F48*A45 -> 67.95563071 | D44: =D43+TH!F48*B45 -> 64.10848835 | F44: =IF($B46="x",C44,TH!$D$211) -> 67.95563071 | G44: =IF($B46="x",D44,TH!$D$212) -> 64.10848835 | I44: -32.81701649 | J44: -2.745354683 | K44: =(I44^2+J44^2)^0.5 -> 32.93164957 | L44: =IF(C45=C44,"",(D45-D44)/(C45-C44)) -> -11.95365272 | M44: =IF(L44="","",D44-L44*C44) -> 876.4264985
A45: =COS(B43*PI()/180) -> 0.9965190604 | B45: =SIN(B43*PI()/180) -> 0.08336523432 | C45: =C44-TH!D48*B45 -> 67.85559243 | D45: =D44+TH!D48*A45 -> 65.30431122 | F45: =IF($B46="x",C45,TH!$D$211) -> 67.85559243 | G45: =IF($B46="x",D45,TH!$D$212) -> 65.30431122 | I45: 0.1000382812 | J45: -1.195822872 | K45: =(I45^2+J45^2)^0.5 -> 1.2 | L45: =IF(C46=C45,"",(D46-D45)/(C46-C45)) -> 0.08365643733 | M45: =IF(L45="","",D45-L45*C45) -> 59.62775411
A46: Plot? | B46: =TH!H11 -> x | C46: =C42 -> 35.03857594 | D46: =D42 -> 62.55895654 | F46: =IF($B46="x",C46,TH!$D$211) -> 35.03857594 | G46: =IF($B46="x",D46,TH!$D$212) -> 62.55895654 | I46: 32.81701649 | J46: 2.745354683 | K46: =(I46^2+J46^2)^0.5 -> 32.93164957
A48: =TH!I12 -> Panel H (3rd inside) | C48: =C43+TH!$F$50*A45 -> 43.36028001 | D48: =D43+TH!$F$50*B45 -> 62.05092894 | F48: =IF($B52="x",C48,TH!$D$211) -> 43.36028001 | G48: =IF($B52="x",D48,TH!$D$212) -> 62.05092894 | L48: =IF(C49=C48,"",(D49-D48)/(C49-C48)) -> -11.95365272 | M48: =IF(L48="","",D48-L48*C48) -> 580.3646583
A49: Angle | B49: =O7 -> 4.782026022 | C49: =C48+TH!F49*B51 -> 47.71272446 | D49: =D48-TH!F49*A51 -> 10.02331954 | F49: =IF($B52="x",C49,TH!$D$211) -> 47.71272446 | G49: =IF($B52="x",D49,TH!$D$212) -> 10.02331954 | I49: =C48-C49 -> -4.352444445 | J49: 52.02760939 | K49: =(I49^2+J49^2)^0.5 -> 52.20934698 | L49: =IF(C50=C49,"",(D50-D49)/(C50-C49)) -> 0.08365643733 | M49: =IF(L49="","",D49-L49*C49) -> 6.031843001
A50: Cos | B50: Sin | C50: =C49-TH!D49*A51 -> 46.51690159 | D50: =D49-TH!D49*B51 -> 9.923281263 | F50: =IF($B52="x",C50,TH!$D$211) -> 46.51690159 | G50: =IF($B52="x",D50,TH!$D$212) -> 9.923281263 | I50: 1.195822872 | J50: 0.1000382812 | K50: =(I50^2+J50^2)^0.5 -> 1.2 | L50: =IF(C51=C50,"",(D51-D50)/(C51-C50)) -> -11.95365272 | M50: =IF(L50="","",D50-L50*C50) -> 565.9701686
A51: =COS(B49*PI()/180) -> 0.9965190604 | B51: =SIN(B49*PI()/180) -> 0.08336523432 | C51: =C50-TH!F49*B51 -> 42.16445714 | D51: =D50+TH!F49*A51 -> 61.95089066 | F51: =IF($B52="x",C51,TH!$D$211) -> 42.16445714 | G51: =IF($B52="x",D51,TH!$D$212) -> 61.95089066 | I51: 4.352444445 | J51: -52.02760939 | K51: =(I51^2+J51^2)^0.5 -> 52.20934698 | L51: =IF(C52=C51,"",(D52-D51)/(C52-C51)) -> 0.08365643733 | M51: =IF(L51="","",D51-L51*C51) -> 58.42356239
A52: Plot? | B52: =TH!H12 -> x | C52: =C48 -> 43.36028001 | D52: =D48 -> 62.05092894 | F52: =IF($B52="x",C52,TH!$D$211) -> 43.36028001 | G52: =IF($B52="x",D52,TH!$D$212) -> 62.05092894 | I52: -1.195822872 | J52: -0.1000382812 | K52: =(I52^2+J52^2)^0.5 -> 1.2
A54: =TH!I13 -> Panel I (4th inside) | C54: =C24+TH!F52 -> 56.13420674 | D54: =D24 -> 1.9 | F54: =IF($B58="x",C54,TH!$D$211) -> 56.13420674 | G54: =IF($B58="x",D54,TH!$D$212) -> 1.9 | L54: =IF(C55=C54,"",(D55-D54)/(C55-C54)) ->  | M54: =IF(L54="","",D54-L54*C54) -> 
A55: Angle | B55: 0 | C55: =C54-TH!$F$51*B57 -> 56.13420674 | D55: =D54+TH!$F$51*A57 -> 52.21573624 | F55: =IF($B58="x",C55,TH!$D$211) -> 56.13420674 | G55: =IF($B58="x",D55,TH!$D$212) -> 52.21573624 | I55: =C54-C55 -> 0 | J55: -50.31573624 | K55: =(I55^2+J55^2)^0.5 -> 50.31573624 | L55: =IF(C56=C55,"",(D56-D55)/(C56-C55)) -> 0 | M55: =IF(L55="","",D55-L55*C55) -> 52.21573624
A56: Cos | B56: Sin | C56: =C55+TH!D51*A57 -> 57.33420674 | D56: =D55+TH!D51*B57 -> 52.21573624 | F56: =IF($B58="x",C56,TH!$D$211) -> 57.33420674 | G56: =IF($B58="x",D56,TH!$D$212) -> 52.21573624 | I56: -1.2 | J56: 0 | K56: =(I56^2+J56^2)^0.5 -> 1.2 | L56: =IF(C57=C56,"",(D57-D56)/(C57-C56)) ->  | M56: =IF(L56="","",D56-L56*C56) -> 
A57: =COS(B55*PI()/180) -> 1 | B57: =SIN(B55*PI()/180) -> 0 | C57: =C56+TH!F51*B57 -> 57.33420674 | D57: =D56-TH!F51*A57 -> 1.9 | F57: =IF($B58="x",C57,TH!$D$211) -> 57.33420674 | G57: =IF($B58="x",D57,TH!$D$212) -> 1.9 | I57: 0 | J57: 50.31573624 | K57: =(I57^2+J57^2)^0.5 -> 50.31573624 | L57: =IF(C58=C57,"",(D58-D57)/(C58-C57)) -> -1.110223025e-15 | M57: =IF(L57="","",D57-L57*C57) -> 1.9
A58: Plot? | B58: =TH!H13 -> x | C58: =C54 -> 56.13420674 | D58: =D54 -> 1.9 | F58: =IF($B58="x",C58,TH!$D$211) -> 56.13420674 | G58: =IF($B58="x",D58,TH!$D$212) -> 1.9 | I58: 1.2 | J58: 0 | K58: =(I58^2+J58^2)^0.5 -> 1.2
A60: =TH!I14 -> Panel J (5th inside) | C60: =C45 -> 67.85559243 | D60: =D45 -> 65.30431122 | F60: =IF($B64="x",C60,TH!$D$211) -> 67.85559243 | G60: =IF($B64="x",D60,TH!$D$212) -> 65.30431122 | L60: =IF(C61=C60,"",(D61-D60)/(C61-C60)) -> -11.95365272 | M60: =IF(L60="","",D60-L60*C60) -> 876.4264985
A61: Angle | B61: =O7 -> 4.782026022 | C61: =C60+TH!F53*B63 -> 71.91953626 | D61: =D60-TH!F53*A63 -> 16.72533796 | F61: =IF($B64="x",C61,TH!$D$211) -> 71.91953626 | G61: =IF($B64="x",D61,TH!$D$212) -> 16.72533796 | I61: =C60-C61 -> -4.063943833 | J61: =D60-D61 -> 48.57897327 | K61: =(I61^2+J61^2)^0.5 -> 48.74866442 | L61: =IF(C62=C61,"",(D62-D61)/(C62-C61)) -> 0.08365643733 | M61: =IF(L61="","",D61-L61*C61) -> 10.70880578
A62: Cos | B62: Sin | C62: =C61+TH!D53*A63 -> 73.11535913 | D62: =D61+TH!D53*B63 -> 16.82537624 | F62: =IF($B64="x",C62,TH!$D$211) -> 73.11535913 | G62: =IF($B64="x",D62,TH!$D$212) -> 16.82537624 | I62: -1.195822872 | J62: -0.1000382812 | K62: =(I62^2+J62^2)^0.5 -> 1.2 | L62: =IF(C63=C62,"",(D63-D62)/(C63-C62)) -> -11.95365272 | M62: =IF(L62="","",D62-L62*C62) -> 890.8209881
A63: =COS(B61*PI()/180) -> 0.9965190604 | B63: =SIN(B61*PI()/180) -> 0.08336523432 | C63: =C62-TH!F53*B63 -> 69.0514153 | D63: =D62+TH!F53*A63 -> 65.4043495 | F63: =IF($B64="x",C63,TH!$D$211) -> 69.0514153 | G63: =IF($B64="x",D63,TH!$D$212) -> 65.4043495 | I63: 4.063943833 | J63: -48.57897327 | K63: =(I63^2+J63^2)^0.5 -> 48.74866442 | L63: =IF(C64=C63,"",(D64-D63)/(C64-C63)) -> 0.08365643733 | M63: =IF(L63="","",D63-L63*C63) -> 59.62775411
A64: Plot? | B64: =TH!H14 -> x | C64: =C60 -> 67.85559243 | D64: =D60 -> 65.30431122 | F64: =IF($B64="x",C64,TH!$D$211) -> 67.85559243 | G64: =IF($B64="x",D64,TH!$D$212) -> 65.30431122 | I64: 1.195822872 | J64: 0.1000382812 | K64: =(I64^2+J64^2)^0.5 -> 1.2

Sheet Path
D2: S | E2: L | F2: W | G2: d | H2: y | K2: Conical | O2: Exponential | Q2: Hyperbolic | R2: Error
C3: S1 | D3: =O27 -> 403 | E3: =N27 -> 0 | F3: =TH!E42 -> 57.16 | H3: =D3/F3 -> 7.050384885 | K3: =($D4/PI())^0.5 -> 11.32602685 | L3: =ATAN((K5-K3)/($E5-$E4))*180/PI() -> 2.466115281 | M3: =SIN($L3*PI()/(180*2)) -> 0.0215192545 | O3: =LN(D5/D3)/(E5-E4) -> 0.005100504234 | Q3: =TH!D62 -> 0.4920999671 | R3: =D5-2*AB129 -> 2.669201422e-06
C4: S2 | D4: =O30 -> 403 | E4: =N30 -> 31.57748116 | F4: =F3 -> 57.16 | G4: =E4-E3 -> 31.57748116 | H4: =D4/F4 -> 7.050384885
C5: S3 | D5: =O129 -> 1813.631248 | E5: =N129 -> 326.4796512 | F5: =F3 -> 57.16 | G5: =E5-E4 -> 294.90217 | H5: 31.72902813 | K5: =($D5/PI())^0.5 -> 24.02700057 | L5: =ATAN((K7-K5)/($E7-$E5))*180/PI() -> 1.748440217 | M5: =SIN($L5*PI()/(180*2)) -> 0.01525742726 | O5: =LN(D7/D5)/(E7-E5) -> 0.002454005243
C6: S4 | D6: =O132 -> 1943.857231 | E6: =N132 -> 353.7608791 | F6: =F4 -> 57.16 | G6: =E6-E5 -> 27.28122789 | H6: =D6/F6 -> 34.00729935
C7: S5 | D7: =O138 -> 2082.926537 | E7: =N138 -> 382.8947074 | F7: =F3 -> 57.16 | G7: =E7-E6 -> 29.13382831 | H7: 36.44028231 | I7: =ATAN((H7-H4)/(E7-E4))*180/PI() -> 4.782017908 | K7: =(D7/PI())^0.5 -> 25.74909918
C9: Expansion | D9: =TH!D31 -> Exp | F9: Path | G9: =SUM(G4:G7) -> 382.8947074
C16: Expansion | AH16: Intersection points
C17: Cos | E17: =COS(TH!$D$40*PI()/180) -> 0.9965190604
C18: Sin | E18: =SIN(TH!$D$40*PI()/180) -> 0.08336523432
C19: tan | E19: =TAN(TH!$D$40*PI()/180) -> 0.08365643733
C21: Cos | E21: =COS(TH!$D$40*PI()/(180*2)) -> 0.9991293861
C22: Sin | E22: =SIN(TH!$D$40*PI()/(180*2)) -> 0.04171893825
C23: tan | E23: =TAN(TH!$D$40*PI()/(180*2)) -> 0.04175529099
A24: Path Calculations | C24: x | D24: y | F24: x | G24: y | I24: d | J24: x | K24: y | L24: dS | M24: d | N24: L | O24: S | R24: Error (P) | S24: Parabolic | U24: Error (C) | V24: Conical | X24: Error (E) | Y24: Exponential | AA24: Error (H) | AB24: Hyperbolic | AD24: Error (Plot) | AI24: x1 | AJ24: y1 | AK24: x2 | AL24: y2 | AM24: a | AN24: b | AO24: x | AP24: y
C25: =Panels!C43 -> 35.13861422 | D25: =Panels!D43 -> 61.36313367 | F25: =IF(TH!$H$18="x",C25,0) -> 35.13861422 | G25: =IF(TH!$H$18="x",D25,0) -> 61.36313367 | H25: =SUM(C25:C26)/2 -> 38.65153568 | I25: =SUM(D25:D26)/2 -> 61.65701216 | J25: =IF(TH!$H$17="x",H25,0) -> 38.65153568 | K25: =IF(TH!$H$17="x",I25,0) -> 61.65701216 | AE25: =IF(B26>0,K25,"") -> 61.65701216
B26: 1 | C26: =Panels!C51 -> 42.16445714 | D26: =Panels!D51 -> 61.95089066 | F26: =IF(TH!$H$18="x",C26,0) -> 42.16445714 | G26: =IF(TH!$H$18="x",D26,0) -> 61.95089066 | J26: =J25 -> 38.65153568 | K26: =K25 -> 61.65701216 | AE26: =IF(B26>0,K26,"") -> 61.65701216
A27: S1 | J27: =J26 -> 38.65153568 | K27: =K26 -> 61.65701216 | M27: 0 | N27: =M27 -> 0 | O27: =((C25-C26)^2+(D25-D26)^2)^0.5*Path!$F$3 -> 403 | P27: =O27/2 -> 201.5 | Q27: =-P27 -> -201.5 | R27: =($P27-S27)*2 -> 0 | S27: =$O27/2 -> 201.5 | T27: =-S27 -> -201.5 | U27: =($P27-V27)*2 -> 0 | V27: =$O27/2 -> 201.5 | W27: =-V27 -> -201.5 | X27: =($P27-Y27)*2 -> 0 | Y27: =$O27/2 -> 201.5 | Z27: =-Y27 -> -201.5 | AA27: =($P27-AB27)*2 -> 0 | AB27: =$O27/2 -> 201.5 | AC27: =-AB27 -> -201.5 | AD27: =IF($D$9="Par",Path!R27,IF($D$9="Con",Path!U27,IF($D$9="Exp",Path!X27,IF($D$9="Hyp",Path!AA27)))) -> 0 | AE27: =IF(B26>0,K27,"") -> 61.65701216
C28: =AO29 -> 37.77107834 | D28: =AP29 -> 29.89557181 | F28: =IF(TH!$H$18="x",C28,0) -> 37.77107834 | G28: =IF(TH!$H$18="x",D28,0) -> 29.89557181 | H28: =SUM(C28:C29)/2 -> 41.2839998 | I28: =SUM(D28:D29)/2 -> 30.18945031 | J28: =IF(TH!$H$17="x",H28,0) -> 41.2839998 | K28: =IF(TH!$H$17="x",I28,0) -> 30.18945031 | M28: =M27 -> 0 | N28: 0 | O28: 403 | P28: 201.5 | Q28: -201.5 | R28: =($P28-S28)*2 -> 1.705302566e-13 | S28: =(($D$7-$D$4)*$N28/$E$7+$D$4)/2 -> 201.5 | T28: -201.5 | U28: =($P28-V28)*2 -> 1.705302566e-13 | V28: =(($D$7-$D$4)*$N28/$E$7+$D$4)/2 -> 201.5 | W28: -201.5 | X28: =($P28-Y28)*2 -> 1.705302566e-13 | Y28: =(($D$7-$D$4)*$N28/$E$7+$D$4)/2 -> 201.5 | Z28: -201.5 | AA28: =($P28-AB28)*2 -> 1.705302566e-13 | AB28: =(($D$7-$D$4)*$N28/$E$7+$D$4)/2 -> 201.5 | AC28: -201.5 | AD28: =IF($D$9="Par",Path!R28,IF($D$9="Con",Path!U28,IF($D$9="Exp",Path!X28,IF($D$9="Hyp",Path!AA28)))) -> 1.705302566e-13 | AE28: =IF(B29>0,K28,"") -> 30.18945031 | AH28: Driver centerline | AI28: =Panels!S22 -> 9.806760466 | AJ28: =Panels!T22 -> 27.55617661 | AK28: =Panels!S28 -> 35.87769212 | AL28: =Panels!T28 -> 29.73717787 | AM28: =(AL28-AJ28)/(AK28-AI28) -> 0.08365643733 | AN28: =(AL28*AI28-AJ28*AK28)/(AI28-AK28) -> 26.73577796
A29: S2 | B29: =B26+1 -> 2 | C29: =AO30 -> 44.79692126 | D29: =AP30 -> 30.4833288 | F29: =IF(TH!$H$18="x",C29,0) -> 44.79692126 | G29: =IF(TH!$H$18="x",D29,0) -> 30.4833288 | J29: =J28 -> 41.2839998 | K29: =K28 -> 30.18945031 | M29: 0 | N29: 0 | O29: 403 | P29: 201.5 | Q29: -201.5 | R29: 1.705302566e-13 | S29: =(($D$7-$D$4)*$N29/$E$7+$D$4)/2 -> 201.5 | T29: -201.5 | U29: 1.705302566e-13 | V29: =(($D$7-$D$4)*$N29/$E$7+$D$4)/2 -> 201.5 | W29: -201.5 | X29: 1.705302566e-13 | Y29: =(($D$7-$D$4)*$N29/$E$7+$D$4)/2 -> 201.5 | Z29: -201.5 | AA29: 1.705302566e-13 | AB29: =(($D$7-$D$4)*$N29/$E$7+$D$4)/2 -> 201.5 | AC29: -201.5 | AD29: =IF($D$9="Par",Path!R29,IF($D$9="Con",Path!U29,IF($D$9="Exp",Path!X29,IF($D$9="Hyp",Path!AA29)))) -> 1.705302566e-13 | AE29: =IF(B29>0,K29,"") -> 30.18945031 | AH29: =Panels!A36 -> Panel F (baffle) | AI29: =Panels!C37 -> 35.03857594 | AJ29: =Panels!D37 -> 62.55895654 | AK29: =Panels!C36 -> 40.27203537 | AL29: =Panels!D36 -> 0 | AM29: =(AL29-AJ29)/(AK29-AI29) -> -11.95365272 | AN29: =(AL29*AI29-AJ29*AK29)/(AI29-AK29) -> 481.3979253 | AO29: =(AN28-AN29)/(AM29-AM28) -> 37.77107834 | AP29: =AO29*AM29+AN29 -> 29.89557181
J30: =J29 -> 41.2839998 | K30: =K29 -> 30.18945031 | M30: =((H28-H25)^2+(I28-I25)^2)^0.5 -> 31.57748116 | N30: =N27+M30 -> 31.57748116 | O30: =((C28-C29)^2+(D28-D29)^2)^0.5*Path!$F$3 -> 403 | P30: 201.5 | Q30: -201.5 | R30: 0 | S30: =(($D$5-$D$4)*(N30-$E$4)/($E$5-$E$4)+$D$4)/2 -> 201.5 | T30: =-S30 -> -201.5 | U30: 0 | V30: =PI()*($M$3*($N30-$E$4)*2+$K$3)^2/2 -> 201.5 | W30: =-V30 -> -201.5 | X30: 0 | Y30: =($D$4*EXP($O$3*(N30-$E$4)))/2 -> 201.5 | Z30: =-Y30 -> -201.5 | AA30: 0 | AB30: =($D$4*(COSH((N30-$E$4)/($E$5-$E$4))+$Q$3*SINH((N30-$E$4)/($E$5-$E$4)))^2)/2 -> 201.5 | AC30: =-AB30 -> -201.5 | AD30: =IF($D$9="Par",Path!R30,IF($D$9="Con",Path!U30,IF($D$9="Exp",Path!X30,IF($D$9="Hyp",Path!AA30)))) -> 0 | AE30: =IF(B29>0,K30,"") -> 30.18945031 | AH30: =Panels!A48 -> Panel H (3rd inside) | AI30: =Panels!C51 -> 42.16445714 | AJ30: =Panels!D51 -> 61.95089066 | AK30: =Panels!C50 -> 46.51690159 | AL30: =Panels!D50 -> 9.923281263 | AM30: =(AL30-AJ30)/(AK30-AI30) -> -11.95365272 | AN30: =(AL30*AI30-AJ30*AK30)/(AI30-AK30) -> 565.9701686 | AO30: =(AN28-AN30)/(AM30-AM28) -> 44.79692126 | AP30: =AO30*AM30+AN30 -> 30.4833288
C31: =Panels!C50 -> 46.51690159 | D31: =Panels!D50 -> 9.923281263 | F31: =IF(TH!$H$18="x",C31,0) -> 46.51690159 | G31: =IF(TH!$H$18="x",D31,0) -> 9.923281263 | H31: =SUM(C31:C32)/2 -> 42.99170914 | I31: =SUM(D31:D32)/2 -> 9.776085827 | J31: =IF(TH!$H$17="x",H31,0) -> 42.99170914 | K31: =IF(TH!$H$17="x",I31,0) -> 9.776085827 | M31: =M30 -> 31.57748116 | N31: 31.57748116 | O31: 403 | P31: 201.5 | Q31: -201.5 | R31: 0 | S31: =(($D$5-$D$4)*(N31-$E$4)/($E$5-$E$4)+$D$4)/2 -> 201.5 | T31: =-S31 -> -201.5 | U31: 0 | V31: 201.5 | W31: =-V31 -> -201.5 | X31: 0 | Y31: =($D$4*EXP($O$3*(N31-$E$4)))/2 -> 201.5 | Z31: =-Y31 -> -201.5 | AA31: 0 | AB31: =($D$4*(COSH((N31-$E$4)/($E$5-$E$4))+$Q$3*SINH((N31-$E$4)/($E$5-$E$4)))^2)/2 -> 201.5 | AC31: =-AB31 -> -201.5 | AD31: =IF($D$9="Par",Path!R31,IF($D$9="Con",Path!U31,IF($D$9="Exp",Path!X31,IF($D$9="Hyp",Path!AA31)))) -> 0 | AE31: =IF(B32>0,K31,"") -> 9.776085827 | AI31: =AI29 -> 35.03857594 | AJ31: 62.55895654 | AK31: 40.27203537 | AL31: 0 | AM31: -11.95365272 | AN31: 481.3979253
B32: =B29+1 -> 3 | C32: =AO32 -> 39.4665167 | D32: =AP32 -> 9.628890391 | F32: =IF(TH!$H$18="x",C32,0) -> 39.4665167 | G32: =IF(TH!$H$18="x",D32,0) -> 9.628890391 | J32: =J31 -> 42.99170914 | K32: =K31 -> 9.776085827 | M32: 31.57748116 | N32: 31.57748116 | O32: 403 | P32: 201.5 | Q32: -201.5 | R32: 0 | S32: 201.5 | T32: =-S32 -> -201.5 | U32: 0 | V32: 201.5 | W32: -201.5 | X32: 0 | Y32: 201.5 | Z32: -201.5 | AA32: 0 | AB32: 201.5 | AC32: -201.5 | AD32: =IF($D$9="Par",Path!R32,IF($D$9="Con",Path!U32,IF($D$9="Exp",Path!X32,IF($D$9="Hyp",Path!AA32)))) -> 0 | AE32: =IF(B32>0,K32,"") -> 9.776085827 | AH32: sample point 3 | AI32: =C31 -> 46.51690159 | AJ32: =D31 -> 9.923281263 | AK32: =AI32-10*E21 -> 36.52560773 | AL32: =AJ32-10*E22 -> 9.506091881 | AM32: =(AL32-AJ32)/(AK32-AI32) -> 0.04175529099 | AN32: =(AL32*AI32-AJ32*AK32)/(AI32-AK32) -> 7.980954502 | AO32: =(AN31-AN32)/(AM32-AM31) -> 39.4665167 | AP32: =AO32*AM32+AN32 -> 9.628890391
J33: =J32 -> 42.99170914 | K33: =K32 -> 9.776085827 | M33: =((H31-H28)^2+(I31-I28)^2)^0.5 -> 20.48467038 | N33: =N30+M33 -> 52.06215154 | O33: =((C31-C32)^2+(D31-D32)^2)^0.5*Path!$F$3 -> 403.3511631 | P33: 201.6755816 | Q33: -201.6755816 | R33: -97.63494576 | S33: 250.4930544 | T33: -250.4930544 | U33: -64.83058085 | V33: 234.090872 | W33: -234.090872 | X33: -44.03347382 | Y33: 223.6923185 | Z33: -223.6923185 | AA33: -29.70794166 | AB33: 216.5295524 | AC33: -216.5295524 | AD33: =IF($D$9="Par",Path!R33,IF($D$9="Con",Path!U33,IF($D$9="Exp",Path!X33,IF($D$9="Hyp",Path!AA33)))) -> -44.03347382 | AE33: =IF(B32>0,K33,"") -> 9.776085827
C34: =C31 -> 46.51690159 | D34: =D31 -> 9.923281263 | F34: =IF(TH!$H$18="x",C34,0) -> 46.51690159 | G34: =IF(TH!$H$18="x",D34,0) -> 9.923281263 | H34: =SUM(C34:C35)/2 -> 43.19308881 | I34: =SUM(D34:D35)/2 -> 7.84386323 | J34: =IF(TH!$H$17="x",H34,0) -> 43.19308881 | K34: =IF(TH!$H$17="x",I34,0) -> 7.84386323 | M34: =M33 -> 20.48467038 | N34: 52.06215154 | O34: 403.3511631 | P34: 201.6755816 | Q34: -201.6755816 | R34: -97.63494576 | S34: 250.4930544 | T34: -250.4930544 | U34: -64.83058085 | V34: 234.090872 | W34: -234.090872 | X34: -44.03347382 | Y34: 223.6923185 | Z34: -223.6923185 | AA34: -29.70794166 | AB34: 216.5295524 | AC34: -216.5295524 | AD34: =IF($D$9="Par",Path!R34,IF($D$9="Con",Path!U34,IF($D$9="Exp",Path!X34,IF($D$9="Hyp",Path!AA34)))) -> -44.03347382 | AE34: =IF(B35>0,K34,"") -> 7.84386323
B35: =B32+1 -> 4 | C35: =(C32+Panels!C28)/2 -> 39.86927604 | D35: =(D32+Panels!D28)/2 -> 5.764445196 | F35: =IF(TH!$H$18="x",C35,0) -> 39.86927604 | G35: =IF(TH!$H$18="x",D35,0) -> 5.764445196 | J35: =J34 -> 43.19308881 | K35: =K34 -> 7.84386323 | M35: 20.48467038 | N35: 52.06215154 | O35: 403.3511631 | P35: 201.6755816 | Q35: -201.6755816 | R35: -97.63494576 | S35: 250.4930544 | T35: -250.4930544 | U35: -64.83058085 | V35: 234.090872 | W35: -234.090872 | X35: -44.03347382 | Y35: 223.6923185 | Z35: -223.6923185 | AA35: -29.70794166 | AB35: 216.5295524 | AC35: -216.5295524 | AD35: =IF($D$9="Par",Path!R35,IF($D$9="Con",Path!U35,IF($D$9="Exp",Path!X35,IF($D$9="Hyp",Path!AA35)))) -> -44.03347382 | AE35: =IF(B35>0,K35,"") -> 7.84386323
J36: =J35 -> 43.19308881 | K36: =K35 -> 7.84386323 | M36: =((H34-H31)^2+(I34-I31)^2)^0.5 -> 1.942688327 | N36: =N33+M36 -> 54.00483987 | O36: =((C34-C35)^2+(D34-D35)^2)^0.5*Path!$F$3 -> 448.2118324 | P36: 224.1059162 | Q36: -224.1059162 | R36: -62.06690684 | S36: 255.1393696 | T36: -255.1393696 | U36: -26.40504003 | V36: 237.3084362 | W36: -237.3084362 | X36: -3.627835545 | Y36: 225.919834 | Z36: -225.919834 | AA36: 12.03059991 | AB36: 218.0906162 | AC36: -218.0906162 | AD36: =IF($D$9="Par",Path!R36,IF($D$9="Con",Path!U36,IF($D$9="Exp",Path!X36,IF($D$9="Hyp",Path!AA36)))) -> -3.627835545 | AE36: =IF(B35>0,K36,"") -> 7.84386323
C37: =C34 -> 46.51690159 | D37: =D34 -> 9.923281263 | F37: =IF(TH!$H$18="x",C37,0) -> 46.51690159 | G37: =IF(TH!$H$18="x",D37,0) -> 9.923281263 | H37: =SUM(C37:C38)/2 -> 45.03943864 | I37: =SUM(D37:D38)/2 -> 5.911640632 | J37: =IF(TH!$H$17="x",H37,0) -> 45.03943864 | K37: =IF(TH!$H$17="x",I37,0) -> 5.911640632 | M37: =M36 -> 1.942688327 | N37: 54.00483987 | O37: 448.2118324 | P37: 224.1059162 | Q37: -224.1059162 | R37: -62.06690684 | S37: 255.1393696 | T37: -255.1393696 | U37: -26.40504003 | V37: 237.3084362 | W37: -237.3084362 | X37: -3.627835545 | Y37: 225.919834 | Z37: -225.919834 | AA37: 12.03059991 | AB37: 218.0906162 | AC37: -218.0906162 | AD37: =IF($D$9="Par",Path!R37,IF($D$9="Con",Path!U37,IF($D$9="Exp",Path!X37,IF($D$9="Hyp",Path!AA37)))) -> -3.627835545 | AE37: =IF(B38>0,K37,"") -> 5.911640632
B38: =B35+1 -> 5 | C38: =(C41+Panels!C28)/2 -> 43.5619757 | D38: =(D92+Panels!D28)/2 -> 1.9 | F38: =IF(TH!$H$18="x",C38,0) -> 43.5619757 | G38: =IF(TH!$H$18="x",D38,0) -> 1.9 | J38: =J37 -> 45.03943864 | K38: =K37 -> 5.911640632 | M38: =M37 -> 1.942688327 | N38: 54.00483987 | O38: 448.2118324 | P38: 224.1059162 | Q38: -224.1059162 | R38: -62.06690684 | S38: 255.1393696 | T38: -255.1393696 | U38: -26.40504003 | V38: 237.3084362 | W38: -237.3084362 | X38: -3.627835545 | Y38: 225.919834 | Z38: -225.919834 | AA38: 12.03059991 | AB38: 218.0906162 | AC38: -218.0906162 | AD38: =IF($D$9="Par",Path!R38,IF($D$9="Con",Path!U38,IF($D$9="Exp",Path!X38,IF($D$9="Hyp",Path!AA38)))) -> -3.627835545 | AE38: =IF(B38>0,K38,"") -> 5.911640632
J39: =J38 -> 45.03943864 | K39: =K38 -> 5.911640632 | M39: =((H37-H34)^2+(I37-I34)^2)^0.5 -> 2.672544082 | N39: =N36+M39 -> 56.67738395 | O39: =((C37-C38)^2+(D37-D38)^2)^0.5*Path!$F$3 -> 488.7251173 | P39: 244.3625587 | Q39: -244.3625587 | R39: -34.33743493 | S39: 261.5312761 | T39: -261.5312761 | U39: 5.183702638 | V39: 241.7707073 | W39: -241.7707073 | X39: 30.68410695 | Y39: 229.0205052 | Z39: -229.0205052 | AA39: 48.16826983 | AB39: 220.2784237 | AC39: -220.2784237 | AD39: =IF($D$9="Par",Path!R39,IF($D$9="Con",Path!U39,IF($D$9="Exp",Path!X39,IF($D$9="Hyp",Path!AA39)))) -> 30.68410695 | AE39: =IF(B38>0,K39,"") -> 5.911640632
C40: =C37 -> 46.51690159 | D40: =D37 -> 9.923281263 | F40: =IF(TH!$H$18="x",C40,0) -> 46.51690159 | G40: =IF(TH!$H$18="x",D40,0) -> 9.923281263 | H40: =SUM(C40:C41)/2 -> 46.68440881 | I40: =SUM(D40:D41)/2 -> 5.911640632 | J40: =IF(TH!$H$17="x",H40,0) -> 46.68440881 | K40: =IF(TH!$H$17="x",I40,0) -> 5.911640632 | M40: =M39 -> 2.672544082 | N40: 56.67738395 | O40: 488.7251173 | P40: 244.3625587 | Q40: -244.3625587 | R40: -34.33743493 | S40: 261.5312761 | T40: -261.5312761 | U40: 5.183702638 | V40: 241.7707073 | W40: -241.7707073 | X40: 30.68410695 | Y40: 229.0205052 | Z40: -229.0205052 | AA40: 48.16826983 | AB40: 220.2784237 | AC40: -220.2784237 | AD40: =IF($D$9="Par",Path!R40,IF($D$9="Con",Path!U40,IF($D$9="Exp",Path!X40,IF($D$9="Hyp",Path!AA40)))) -> 30.68410695 | AE40: =IF(B41>0,K40,"") -> 5.911640632 | AH40: =TH!I11 -> Panel G (2nd inside) | AI40: =Panels!C43 -> 35.13861422 | AJ40: =Panels!D43 -> 61.36313367 | AK40: =Panels!C44 -> 67.95563071 | AL40: =Panels!D44 -> 64.10848835 | AM40: =(AL40-AJ40)/(AK40-AI40) -> 0.08365643733 | AN40: =(AL40*AI40-AJ40*AK40)/(AI40-AK40) -> 58.42356239
B41: =B38+1 -> 6 | C41: =C40+(D40-D41)*E$23 -> 46.85191603 | D41: =Panels!$D$57 -> 1.9 | F41: =IF(TH!$H$18="x",C41,0) -> 46.85191603 | G41: =IF(TH!$H$18="x",D41,0) -> 1.9 | J41: =J40 -> 46.68440881 | K41: =K40 -> 5.911640632 | M41: =M40 -> 2.672544082 | N41: 56.67738395 | O41: 488.7251173 | P41: 244.3625587 | Q41: -244.3625587 | R41: -34.33743493 | S41: 261.5312761 | T41: -261.5312761 | U41: 5.183702638 | V41: 241.7707073 | W41: -241.7707073 | X41: 30.68410695 | Y41: 229.0205052 | Z41: -229.0205052 | AA41: 48.16826983 | AB41: 220.2784237 | AC41: -220.2784237 | AD41: =IF($D$9="Par",Path!R41,IF($D$9="Con",Path!U41,IF($D$9="Exp",Path!X41,IF($D$9="Hyp",Path!AA41)))) -> 30.68410695 | AE41: =IF(B41>0,K41,"") -> 5.911640632 | AH41: sample point 6 | AI41: =AI32 -> 46.51690159 | AJ41: =AJ32 -> 9.923281263 | AK41: =AI41-10*$E$22 -> 46.0997122 | AL41: =AJ41+10*$E$21 -> 19.91457512 | AM41: =(AL41-AJ41)/(AK41-AI41) -> -23.94906074 | AN41: =(AL41*AI41-AJ41*AK41)/(AI41-AK41) -> 1123.959383 | AO41: =(AN40-AN41)/(AM41-AM40) -> 44.33688511 | AP41: =AO41*AM41+AN41 -> 62.13262824
J42: =J41 -> 46.68440881 | K42: =K41 -> 5.911640632 | M42: =((H40-H37)^2+(I40-I37)^2)^0.5 -> 1.644970166 | N42: =N39+M42 -> 58.32235411 | O42: =((C40-C41)^2+(D40-D41)^2)^0.5*Path!$F$3 -> 459.0103778 | P42: 229.5051889 | Q42: -229.5051889 | R42: -71.92070355 | S42: 265.4655407 | T42: -265.4655407 | U42: -30.0654861 | V42: 244.537932 | W42: -244.537932 | X42: -2.889844924 | Y42: 230.9501114 | Z42: -230.9501114 | AA42: 15.71338439 | AB42: 221.6484967 | AC42: -221.6484967 | AD42: =IF($D$9="Par",Path!R42,IF($D$9="Con",Path!U42,IF($D$9="Exp",Path!X42,IF($D$9="Hyp",Path!AA42)))) -> -2.889844924 | AE42: =IF(B41>0,K42,"") -> 5.911640632
C43: =Panels!C49 -> 47.71272446 | D43: =Panels!D49 -> 10.02331954 | F43: =IF(TH!$H$18="x",C43,0) -> 47.71272446 | G43: =IF(TH!$H$18="x",D43,0) -> 10.02331954 | H43: =SUM(C43:C44)/2 -> 47.88232024 | I43: =SUM(D43:D44)/2 -> 5.961659772 | J43: =IF(TH!$H$17="x",H43,0) -> 47.88232024 | K43: =IF(TH!$H$17="x",I43,0) -> 5.961659772 | M43: =M42 -> 1.644970166 | N43: 58.32235411 | O43: 459.0103778 | P43: 229.5051889 | Q43: -229.5051889 | R43: -71.92070355 | S43: 265.4655407 | T43: -265.4655407 | U43: -30.0654861 | V43: 244.537932 | W43: -244.537932 | X43: -2.889844924 | Y43: 230.9501114 | Z43: -230.9501114 | AA43: 15.71338439 | AB43: 221.6484967 | AC43: -221.6484967 | AD43: =IF($D$9="Par",Path!R43,IF($D$9="Con",Path!U43,IF($D$9="Exp",Path!X43,IF($D$9="Hyp",Path!AA43)))) -> -2.889844924 | AE43: =IF(B44>0,K43,"") -> 5.961659772
B44: =B41+1 -> 7 | C44: =C43+(D43-D44)*E$23 -> 48.05191603 | D44: =Panels!$D$57 -> 1.9 | F44: =IF(TH!$H$18="x",C44,0) -> 48.05191603 | G44: =IF(TH!$H$18="x",D44,0) -> 1.9 | J44: =J43 -> 47.88232024 | K44: =K43 -> 5.961659772 | M44: =M43 -> 1.644970166 | N44: 58.32235411 | O44: 459.0103778 | P44: 229.5051889 | Q44: -229.5051889 | R44: -71.92070355 | S44: 265.4655407 | T44: -265.4655407 | U44: -30.0654861 | V44: 244.537932 | W44: -244.537932 | X44: -2.889844924 | Y44: 230.9501114 | Z44: -230.9501114 | AA44: 15.71338439 | AB44: 221.6484967 | AC44: -221.6484967 | AD44: =IF($D$9="Par",Path!R44,IF($D$9="Con",Path!U44,IF($D$9="Exp",Path!X44,IF($D$9="Hyp",Path!AA44)))) -> -2.889844924 | AE44: =IF(B44>0,K44,"") -> 5.961659772
J45: =J44 -> 47.88232024 | K45: =K44 -> 5.961659772 | M45: =((H43-H40)^2+(I43-I40)^2)^0.5 -> 1.198955263 | N45: =N42+M45 -> 59.52130938 | O45: =((C43-C44)^2+(D43-D44)^2)^0.5*Path!$F$3 -> 464.7335487 | P45: 232.3667743 | Q45: -232.3667743 | R45: -71.93259992 | S45: 268.3330743 | T45: -268.3330743 | U45: -28.39600373 | V45: 246.5647762 | W45: -246.5647762 | X45: 2.398786148e-05 | Y45: 232.3667623 | Z45: -232.3667623 | AA45: 19.41660133 | AB45: 222.6584737 | AC45: -222.6584737 | AD45: =IF($D$9="Par",Path!R45,IF($D$9="Con",Path!U45,IF($D$9="Exp",Path!X45,IF($D$9="Hyp",Path!AA45)))) -> 2.398786148e-05 | AE45: =IF(B44>0,K45,"") -> 5.961659772
C46: =C43 -> 47.71272446 | D46: =D43 -> 10.02331954 | F46: =IF(TH!$H$18="x",C46,0) -> 47.71272446 | G46: =IF(TH!$H$18="x",D46,0) -> 10.02331954 | H46: =SUM(C46:C47)/2 -> 49.90289292 | I46: =SUM(D46:D47)/2 -> 5.961659772 | J46: =IF(TH!$H$17="x",H46,0) -> 49.90289292 | K46: =IF(TH!$H$17="x",I46,0) -> 5.961659772 | M46: =M45 -> 1.198955263 | N46: 59.52130938 | O46: 464.7335487 | P46: 232.3667743 | Q46: -232.3667743 | R46: -71.93259992 | S46: 268.3330743 | T46: -268.3330743 | U46: -28.39600373 | V46: 246.5647762 | W46: -246.5647762 | X46: 2.398786148e-05 | Y46: 232.3667623 | Z46: -232.3667623 | AA46: 19.41660133 | AB46: 222.6584737 | AC46: -222.6584737 | AD46: =IF($D$9="Par",Path!R46,IF($D$9="Con",Path!U46,IF($D$9="Exp",Path!X46,IF($D$9="Hyp",Path!AA46)))) -> 2.398786148e-05 | AE46: =IF(B47>0,K46,"") -> 5.961659772
B47: =B44+1 -> 8 | C47: =(C44+Panels!C54)/2 -> 52.09306139 | D47: =D44 -> 1.9 | F47: =IF(TH!$H$18="x",C47,0) -> 52.09306139 | G47: =IF(TH!$H$18="x",D47,0) -> 1.9 | J47: =J46 -> 49.90289292 | K47: =K46 -> 5.961659772 | M47: =M46 -> 1.198955263 | N47: 59.52130938 | O47: 464.7335487 | P47: 232.3667743 | Q47: -232.3667743 | R47: -71.93259992 | S47: 268.3330743 | T47: -268.3330743 | U47: -28.39600373 | V47: 246.5647762 | W47: -246.5647762 | X47: 2.398786148e-05 | Y47: 232.3667623 | Z47: -232.3667623 | AA47: 19.41660133 | AB47: 222.6584737 | AC47: -222.6584737 | AD47: =IF($D$9="Par",Path!R47,IF($D$9="Con",Path!U47,IF($D$9="Exp",Path!X47,IF($D$9="Hyp",Path!AA47)))) -> 2.398786148e-05 | AE47: =IF(B47>0,K47,"") -> 5.961659772
J48: =J47 -> 49.90289292 | K48: =K47 -> 5.961659772 | M48: =((H46-H43)^2+(I46-I43)^2)^0.5 -> 2.020572678 | N48: =N45+M48 -> 61.54188206 | O48: =((C46-C47)^2+(D46-D47)^2)^0.5*Path!$F$3 -> 527.5334522 | P48: 263.7667261 | Q48: -263.7667261 | R48: -18.79787776 | S48: 273.165665 | T48: -273.165665 | U48: 27.53445299 | V48: 249.9994996 | W48: -249.9994996 | X48: 57.98564669 | Y48: 234.7739027 | Z48: -234.7739027 | AA48: 78.76847577 | AB48: 224.3824882 | AC48: -224.3824882 | AD48: =IF($D$9="Par",Path!R48,IF($D$9="Con",Path!U48,IF($D$9="Exp",Path!X48,IF($D$9="Hyp",Path!AA48)))) -> 57.98564669 | AE48: =IF(B47>0,K48,"") -> 5.961659772
C49: =C46 -> 47.71272446 | D49: =D46 -> 10.02331954 | F49: =IF(TH!$H$18="x",C49,0) -> 47.71272446 | G49: =IF(TH!$H$18="x",D49,0) -> 10.02331954 | H49: =SUM(C49:C50)/2 -> 51.9234656 | I49: =SUM(D49:D50)/2 -> 8.080400019 | J49: =IF(TH!$H$17="x",H49,0) -> 51.9234656 | K49: =IF(TH!$H$17="x",I49,0) -> 8.080400019 | M49: =M48 -> 2.020572678 | N49: 61.54188206 | O49: 527.5334522 | P49: 263.7667261 | Q49: -263.7667261 | R49: -18.79787776 | S49: 273.165665 | T49: -273.165665 | U49: 27.53445299 | V49: 249.9994996 | W49: -249.9994996 | X49: 57.98564669 | Y49: 234.7739027 | Z49: -234.7739027 | AA49: 78.76847577 | AB49: 224.3824882 | AC49: -224.3824882 | AD49: =IF($D$9="Par",Path!R49,IF($D$9="Con",Path!U49,IF($D$9="Exp",Path!X49,IF($D$9="Hyp",Path!AA49)))) -> 57.98564669 | AE49: =IF(B50>0,K49,"") -> 8.080400019
B50: =B47+1 -> 9 | C50: =(C53+Panels!C54)/2 -> 56.13420674 | D50: =(D53+Panels!D54)/2 -> 6.137480494 | F50: =IF(TH!$H$18="x",C50,0) -> 56.13420674 | G50: =IF(TH!$H$18="x",D50,0) -> 6.137480494 | J50: =J49 -> 51.9234656 | K50: =K49 -> 8.080400019 | M50: =M49 -> 2.020572678 | N50: 61.54188206 | O50: 527.5334522 | P50: 263.7667261 | Q50: -263.7667261 | R50: -18.79787776 | S50: 273.165665 | T50: -273.165665 | U50: 27.53445299 | V50: 249.9994996 | W50: -249.9994996 | X50: 57.98564669 | Y50: 234.7739027 | Z50: -234.7739027 | AA50: 78.76847577 | AB50: 224.3824882 | AC50: -224.3824882 | AD50: =IF($D$9="Par",Path!R50,IF($D$9="Con",Path!U50,IF($D$9="Exp",Path!X50,IF($D$9="Hyp",Path!AA50)))) -> 57.98564669 | AE50: =IF(B50>0,K50,"") -> 8.080400019
J51: =J50 -> 51.9234656 | K51: =K50 -> 8.080400019 | M51: =((H49-H46)^2+(I49-I46)^2)^0.5 -> 2.927759242 | N51: =N48+M51 -> 64.4696413 | O51: =((C49-C50)^2+(D49-D50)^2)^0.5*Path!$F$3 -> 530.1450842 | P51: 265.0725421 | Q51: -265.0725421 | R51: -30.19085168 | S51: 280.1679679 | T51: -280.1679679 | U51: 20.1081225 | V51: 255.0184808 | W51: -255.0184808 | X51: 53.53288337 | Y51: 238.3061004 | Z51: -238.3061004 | AA51: 76.28518499 | AB51: 226.9299496 | AC51: -226.9299496 | AD51: =IF($D$9="Par",Path!R51,IF($D$9="Con",Path!U51,IF($D$9="Exp",Path!X51,IF($D$9="Hyp",Path!AA51)))) -> 53.53288337 | AE51: =IF(B50>0,K51,"") -> 8.080400019
C52: =C46 -> 47.71272446 | D52: =D46 -> 10.02331954 | F52: =IF(TH!$H$18="x",C52,0) -> 47.71272446 | G52: =IF(TH!$H$18="x",D52,0) -> 10.02331954 | H52: =SUM(C52:C53)/2 -> 51.9234656 | I52: =SUM(D52:D53)/2 -> 10.19914027 | J52: =IF(TH!$H$17="x",H52,0) -> 51.9234656 | K52: =IF(TH!$H$17="x",I52,0) -> 10.19914027 | M52: =M51 -> 2.927759242 | N52: 64.4696413 | O52: 530.1450842 | P52: =O52/2 -> 265.0725421 | Q52: =-P52 -> -265.0725421 | R52: -30.19085168 | S52: 280.1679679 | T52: =-S52 -> -280.1679679 | U52: 20.1081225 | V52: 255.0184808 | W52: -255.0184808 | X52: 53.53288337 | Y52: 238.3061004 | Z52: -238.3061004 | AA52: 76.28518499 | AB52: 226.9299496 | AC52: -226.9299496 | AD52: =IF($D$9="Par",Path!R52,IF($D$9="Con",Path!U52,IF($D$9="Exp",Path!X52,IF($D$9="Hyp",Path!AA52)))) -> 53.53288337 | AE52: =IF(B53>0,K52,"") -> 10.19914027 | AH52: =TH!I12 -> Panel H (3rd inside) | AI52: =Panels!C54 -> 56.13420674 | AJ52: =Panels!D54 -> 1.9 | AK52: =Panels!C55 -> 56.13420674 | AL52: =Panels!D55 -> 52.21573624 | AM52: =IF(AK52-AI52<>0,(AL52-AJ52)/(AK52-AI52),"vertical") -> vertical | AN52: =IF(AM52<>"vertical",(AL52*AI52-AJ52*AK52)/(AI52-AK52),AJ52) -> 1.9
B53: =B50+1 -> 10 | C53: =AO53 -> 56.13420674 | D53: =AP53 -> 10.37496099 | F53: =IF(TH!$H$18="x",C53,0) -> 56.13420674 | G53: =IF(TH!$H$18="x",D53,0) -> 10.37496099 | J53: =J52 -> 51.9234656 | K53: =K52 -> 10.19914027 | M53: =M52 -> 2.927759242 | N53: 64.4696413 | O53: 530.1450842 | P53: 265.0725421 | Q53: -265.0725421 | R53: -30.19085168 | S53: 280.1679679 | T53: -280.1679679 | U53: 20.1081225 | V53: 255.0184808 | W53: -255.0184808 | X53: 53.53288337 | Y53: 238.3061004 | Z53: -238.3061004 | AA53: 76.28518499 | AB53: 226.9299496 | AC53: -226.9299496 | AD53: =IF($D$9="Par",Path!R53,IF($D$9="Con",Path!U53,IF($D$9="Exp",Path!X53,IF($D$9="Hyp",Path!AA53)))) -> 53.53288337 | AE53: =IF(B53>0,K53,"") -> 10.19914027 | AH53: Sample point 10 | AI53: =C52 -> 47.71272446 | AJ53: =D52 -> 10.02331954 | AK53: =AI53+10*$E$21 -> 57.70401832 | AL53: =AJ53+10*$E$22 -> 10.44050893 | AM53: =(AL53-AJ53)/(AK53-AI53) -> 0.04175529099 | AN53: =(AL53*AI53-AJ53*AK53)/(AI53-AK53) -> 8.031060851 | AO53: =IF(AM52<>"vertical",(AN52-AN53)/(AM53-AM52),AI52) -> 56.13420674 | AP53: =AO53*AM53+AN53 -> 10.37496099
J54: =J53 -> 51.9234656 | K54: =K53 -> 10.19914027 | M54: =((H52-H49)^2+(I52-I49)^2)^0.5 -> 2.118740247 | N54: =N51+M54 -> 66.58838155 | O54: =((C52-C53)^2+(D52-D53)^2)^0.5*Path!$F$3 -> 481.7913816 | P54: 240.8956908 | Q54: -240.8956908 | R54: -88.67930908 | S54: 285.2353454 | T54: -285.2353454 | U54: -35.57200257 | V54: 258.6816921 | W54: -258.6816921 | X54: 0.0006718781152 | Y54: 240.8953549 | Z54: -240.8953549 | AA54: 24.17048794 | AB54: 228.8104468 | AC54: -228.8104468 | AD54: =IF($D$9="Par",Path!R54,IF($D$9="Con",Path!U54,IF($D$9="Exp",Path!X54,IF($D$9="Hyp",Path!AA54)))) -> 0.0006718781152 | AE54: =IF(B53>0,K54,"") -> 10.19914027
C55: =Panels!C55 -> 56.13420674 | D55: =Panels!D55 -> 52.21573624 | F55: =IF(TH!$H$18="x",C55,0) -> 56.13420674 | G55: =IF(TH!$H$18="x",D55,0) -> 52.21573624 | H55: =SUM(C55:C56)/2 -> 50.17943258 | I55: =SUM(D55:D56)/2 -> 51.96709291 | J55: =IF(TH!$H$17="x",H55,0) -> 50.17943258 | K55: =IF(TH!$H$17="x",I55,0) -> 51.96709291 | M55: =M54 -> 2.118740247 | N55: 66.58838155 | O55: 481.7913816 | P55: 240.8956908 | Q55: -240.8956908 | R55: -88.67930908 | S55: 285.2353454 | T55: -285.2353454 | U55: -35.57200257 | V55: 258.6816921 | W55: -258.6816921 | X55: 0.0006718781152 | Y55: 240.8953549 | Z55: -240.8953549 | AA55: 24.17048794 | AB55: 228.8104468 | AC55: -228.8104468 | AD55: =IF($D$9="Par",Path!R55,IF($D$9="Con",Path!U55,IF($D$9="Exp",Path!X55,IF($D$9="Hyp",Path!AA55)))) -> 0.0006718781152 | AE55: =IF(B56>0,K55,"") -> 51.96709291 | AH55: =Panels!A54 -> Panel I (4th inside) | AI55: =C55 -> 56.13420674 | AJ55: =D55 -> 52.21573624 | AK55: =AI55+10*$E$21 -> 66.1255006 | AL55: =AJ55+10*$E$22 -> 52.63292562 | AM55: =IF(AK55-AI55<>0,(AL55-AJ55)/(AK55-AI55),"vertical") -> 0.04175529099 | AN55: =IF(AM55<>"vertical",(AL55*AI55-AJ55*AK55)/(AI55-AK55),AJ55) -> 49.8718361
B56: =B53+1 -> 11 | C56: =AO56 -> 44.22465843 | D56: =AP56 -> 51.71844958 | F56: =IF(TH!$H$18="x",C56,0) -> 44.22465843 | G56: =IF(TH!$H$18="x",D56,0) -> 51.71844958 | J56: =J55 -> 50.17943258 | K56: =K55 -> 51.96709291 | M56: =M55 -> 2.118740247 | N56: 66.58838155 | O56: 481.7913816 | P56: 240.8956908 | Q56: -240.8956908 | R56: -88.67930908 | S56: 285.2353454 | T56: -285.2353454 | U56: -35.57200257 | V56: 258.6816921 | W56: -258.6816921 | X56: 0.0006718781152 | Y56: 240.8953549 | Z56: -240.8953549 | AA56: 24.17048794 | AB56: 228.8104468 | AC56: -228.8104468 | AD56: =IF($D$9="Par",Path!R56,IF($D$9="Con",Path!U56,IF($D$9="Exp",Path!X56,IF($D$9="Hyp",Path!AA56)))) -> 0.0006718781152 | AE56: =IF(B56>0,K56,"") -> 51.96709291 | AH56: =Panels!A48 -> Panel H (3rd inside) | AI56: =Panels!C48 -> 43.36028001 | AJ56: =Panels!D48 -> 62.05092894 | AK56: =Panels!C49 -> 47.71272446 | AL56: =Panels!D49 -> 10.02331954 | AM56: =(AL56-AJ56)/(AK56-AI56) -> -11.95365272 | AN56: =(AL56*AI56-AJ56*AK56)/(AI56-AK56) -> 580.3646583 | AO56: =IF(AM55<>"vertical",(AN55-AN56)/(AM56-AM55),AI55) -> 44.22465843 | AP56: =AO56*AM56+AN56 -> 51.71844958
J57: =J56 -> 50.17943258 | K57: =K56 -> 51.96709291 | M57: =((H55-H52)^2+(I55-I52)^2)^0.5 -> 41.80434809 | N57: =N54+M57 -> 108.3927296 | O57: =((C55-C56)^2+(D55-D56)^2)^0.5*Path!$F$3 -> 681.3429684 | P57: 340.6714842 | Q57: -340.6714842 | R57: -89.09410336 | S57: 385.2185359 | T57: -385.2185359 | U57: 8.738623824 | V57: 336.3021723 | W57: -336.3021723 | X57: 85.04942877 | Y57: 298.1467698 | Z57: -298.1467698 | AA57: 135.5529575 | AB57: 272.8950055 | AC57: -272.8950055 | AD57: =IF($D$9="Par",Path!R57,IF($D$9="Con",Path!U57,IF($D$9="Exp",Path!X57,IF($D$9="Hyp",Path!AA57)))) -> 85.04942877 | AE57: =IF(B56>0,K57,"") -> 51.96709291
C58: =C55 -> 56.13420674 | D58: =D55 -> 52.21573624 | F58: =IF(TH!$H$18="x",C58,0) -> 56.13420674 | G58: =IF(TH!$H$18="x",D58,0) -> 52.21573624 | H58: =SUM(C58:C59)/2 -> 49.96333798 | I58: =SUM(D58:D59)/2 -> 54.55021275 | J58: =IF(TH!$H$17="x",H58,0) -> 49.96333798 | K58: =IF(TH!$H$17="x",I58,0) -> 54.55021275 | M58: =M57 -> 41.80434809 | N58: 108.3927296 | O58: 681.3429684 | P58: 340.6714842 | Q58: -340.6714842 | R58: -89.09410336 | S58: 385.2185359 | T58: -385.2185359 | U58: 8.738623824 | V58: 336.3021723 | W58: -336.3021723 | X58: 85.04942877 | Y58: 298.1467698 | Z58: -298.1467698 | AA58: 135.5529575 | AB58: 272.8950055 | AC58: -272.8950055 | AD58: =IF($D$9="Par",Path!R58,IF($D$9="Con",Path!U58,IF($D$9="Exp",Path!X58,IF($D$9="Hyp",Path!AA58)))) -> 85.04942877 | AE58: =IF(B59>0,K58,"") -> 54.55021275
B59: =B56+1 -> 12 | C59: =(C56+Panels!C48)/2 -> 43.79246922 | D59: =(D56+Panels!D48)/2 -> 56.88468926 | F59: =IF(TH!$H$18="x",C59,0) -> 43.79246922 | G59: =IF(TH!$H$18="x",D59,0) -> 56.88468926 | J59: =J58 -> 49.96333798 | K59: =K58 -> 54.55021275 | M59: =M58 -> 41.80434809 | N59: 108.3927296 | O59: 681.3429684 | P59: 340.6714842 | Q59: -340.6714842 | R59: -89.09410336 | S59: 385.2185359 | T59: -385.2185359 | U59: 8.738623824 | V59: 336.3021723 | W59: -336.3021723 | X59: 85.04942877 | Y59: 298.1467698 | Z59: -298.1467698 | AA59: 135.5529575 | AB59: 272.8950055 | AC59: -272.8950055 | AD59: =IF($D$9="Par",Path!R59,IF($D$9="Con",Path!U59,IF($D$9="Exp",Path!X59,IF($D$9="Hyp",Path!AA59)))) -> 85.04942877 | AE59: =IF(B59>0,K59,"") -> 54.55021275
J60: =J59 -> 49.96333798 | K60: =K59 -> 54.55021275 | M60: =((H58-H55)^2+(I58-I55)^2)^0.5 -> 2.592142932 | N60: =N57+M60 -> 110.9848726 | O60: =((C58-C59)^2+(D58-D59)^2)^0.5*Path!$F$3 -> 754.2469549 | P60: 377.1234775 | Q60: -377.1234775 | R60: -28.58934002 | S60: 391.4181475 | T60: -391.4181475 | U60: 71.34696864 | V60: 341.4499932 | W60: -341.4499932 | X60: 150.0173308 | Y60: 302.1148121 | Z60: -302.1148121 | AA60: 202.0282963 | AB60: 276.1093293 | AC60: -276.1093293 | AD60: =IF($D$9="Par",Path!R60,IF($D$9="Con",Path!U60,IF($D$9="Exp",Path!X60,IF($D$9="Hyp",Path!AA60)))) -> 150.0173308 | AE60: =IF(B59>0,K60,"") -> 54.55021275
C61: =C58 -> 56.13420674 | D61: =D58 -> 52.21573624 | F61: =IF(TH!$H$18="x",C61,0) -> 56.13420674 | G61: =IF(TH!$H$18="x",D61,0) -> 52.21573624 | H61: =SUM(C61:C62)/2 -> 53.05494703 | I61: =SUM(D61:D62)/2 -> 57.41004329 | J61: =IF(TH!$H$17="x",H61,0) -> 53.05494703 | K61: =IF(TH!$H$17="x",I61,0) -> 57.41004329 | M61: =M60 -> 2.592142932 | N61: 110.9848726 | O61: 754.2469549 | P61: 377.1234775 | Q61: -377.1234775 | R61: -28.58934002 | S61: 391.4181475 | T61: -391.4181475 | U61: 71.34696864 | V61: 341.4499932 | W61: -341.4499932 | X61: 150.0173308 | Y61: 302.1148121 | Z61: -302.1148121 | AA61: 202.0282963 | AB61: 276.1093293 | AC61: -276.1093293 | AD61: =IF($D$9="Par",Path!R61,IF($D$9="Con",Path!U61,IF($D$9="Exp",Path!X61,IF($D$9="Hyp",Path!AA61)))) -> 150.0173308 | AE61: =IF(B62>0,K61,"") -> 57.41004329
B62: =B59+1 -> 13 | C62: =(C65+Panels!C48)/2 -> 49.97568732 | D62: =(D65+Panels!D48)/2 -> 62.60435034 | F62: =IF(TH!$H$18="x",C62,0) -> 49.97568732 | G62: =IF(TH!$H$18="x",D62,0) -> 62.60435034 | J62: =J61 -> 53.05494703 | K62: =K61 -> 57.41004329 | M62: =M61 -> 2.592142932 | N62: 110.9848726 | O62: 754.2469549 | P62: 377.1234775 | Q62: -377.1234775 | R62: -28.58934002 | S62: 391.4181475 | T62: -391.4181475 | U62: 71.34696864 | V62: =PI()*($M$3*($N62-$E$4)*2+$K$3)^2/2 -> 341.4499932 | W62: -341.4499932 | X62: 150.0173308 | Y62: 302.1148121 | Z62: -302.1148121 | AA62: 202.0282963 | AB62: 276.1093293 | AC62: -276.1093293 | AD62: =IF($D$9="Par",Path!R62,IF($D$9="Con",Path!U62,IF($D$9="Exp",Path!X62,IF($D$9="Hyp",Path!AA62)))) -> 150.0173308 | AE62: =IF(B62>0,K62,"") -> 57.41004329
J63: =J62 -> 53.05494703 | K63: =K62 -> 57.41004329 | M63: =((H61-H58)^2+(I61-I58)^2)^0.5 -> 4.211493469 | N63: =N60+M63 -> 115.196366 | O63: =((C61-C62)^2+(D61-D62)^2)^0.5*Path!$F$3 -> 690.3135948 | P63: 345.1567974 | Q63: -345.1567974 | R63: -112.6679039 | S63: 401.4907493 | T63: -401.4907493 | U63: -9.480615503 | V63: 349.8971052 | W63: -349.8971052 | X63: 72.96426506 | Y63: 308.6746649 | Z63: -308.6746649 | AA63: 127.3860524 | AB63: 281.4637712 | AC63: -281.4637712 | AD63: =IF($D$9="Par",Path!R63,IF($D$9="Con",Path!U63,IF($D$9="Exp",Path!X63,IF($D$9="Hyp",Path!AA63)))) -> 72.96426506 | AE63: =IF(B62>0,K63,"") -> 57.41004329
C64: =C61 -> 56.13420674 | D64: =D61 -> 52.21573624 | F64: =IF(TH!$H$18="x",C64,0) -> 56.13420674 | G64: =IF(TH!$H$18="x",D64,0) -> 52.21573624 | H64: =SUM(C64:C65)/2 -> 56.36265068 | I64: =SUM(D64:D65)/2 -> 57.68675399 | J64: =IF(TH!$H$17="x",H64,0) -> 56.36265068 | K64: =IF(TH!$H$17="x",I64,0) -> 57.68675399 | M64: =M63 -> 4.211493469 | N64: 115.196366 | O64: 690.3135948 | P64: 345.1567974 | Q64: -345.1567974 | R64: -112.6679039 | S64: 401.4907493 | T64: -401.4907493 | U64: -9.480615503 | V64: 349.8971052 | W64: -349.8971052 | X64: 72.96426506 | Y64: 308.6746649 | Z64: -308.6746649 | AA64: 127.3860524 | AB64: 281.4637712 | AC64: -281.4637712 | AD64: =IF($D$9="Par",Path!R64,IF($D$9="Con",Path!U64,IF($D$9="Exp",Path!X64,IF($D$9="Hyp",Path!AA64)))) -> 72.96426506 | AE64: =IF(B65>0,K64,"") -> 57.68675399 | AH64: =Panels!A54 -> Panel I (4th inside) | AI64: =C64 -> 56.13420674 | AJ64: =D64 -> 52.21573624 | AK64: =AI64+10*$E$22 -> 56.55139613 | AL64: =AJ64+10*$E$21 -> 62.2070301 | AM64: =IF(AK64-AI64<>0,(AL64-AJ64)/(AK64-AI64),"vertical") -> 23.94906074 | AN64: =IF(AM64<>"vertical",(AL64*AI64-AJ64*AK64)/(AI64-AK64),AJ64) -> -1292.145791
B65: =B62+1 -> 14 | C65: =AO65 -> 56.59109462 | D65: =AP65 -> 63.15777175 | F65: =IF(TH!$H$18="x",C65,0) -> 56.59109462 | G65: =IF(TH!$H$18="x",D65,0) -> 63.15777175 | J65: =J64 -> 56.36265068 | K65: =K64 -> 57.68675399 | M65: =M64 -> 4.211493469 | N65: 115.196366 | O65: 690.3135948 | P65: 345.1567974 | Q65: -345.1567974 | R65: -112.6679039 | S65: 401.4907493 | T65: -401.4907493 | U65: -9.480615503 | V65: 349.8971052 | W65: -349.8971052 | X65: 72.96426506 | Y65: 308.6746649 | Z65: -308.6746649 | AA65: 127.3860524 | AB65: 281.4637712 | AC65: -281.4637712 | AD65: =IF($D$9="Par",Path!R65,IF($D$9="Con",Path!U65,IF($D$9="Exp",Path!X65,IF($D$9="Hyp",Path!AA65)))) -> 72.96426506 | AE65: =IF(B65>0,K65,"") -> 57.68675399 | AH65: =Panels!A42 -> Panel G (2nd inside) | AI65: =Panels!C43 -> 35.13861422 | AJ65: =Panels!D43 -> 61.36313367 | AK65: =Panels!C44 -> 67.95563071 | AL65: =Panels!D44 -> 64.10848835 | AM65: =(AL65-AJ65)/(AK65-AI65) -> 0.08365643733 | AN65: =(AL65*AI65-AJ65*AK65)/(AI65-AK65) -> 58.42356239 | AO65: =IF(AM64<>"vertical",(AN64-AN65)/(AM65-AM64),AI64) -> 56.59109462 | AP65: =AO65*AM65+AN65 -> 63.15777175
J66: =J65 -> 56.36265068 | K66: =K65 -> 57.68675399 | M66: =((H64-H61)^2+(I64-I61)^2)^0.5 -> 3.319257787 | N66: =N63+M66 -> 118.5156238 | O66: =((C64-C65)^2+(D64-D65)^2)^0.5*Path!$F$3 -> 625.9917471 | P66: 312.9958735 | Q66: -312.9958735 | R66: -192.8670466 | S66: 409.4293968 | T66: -409.4293968 | U66: -87.26298235 | V66: 356.6273647 | W66: -356.6273647 | X66: -1.898211979 | Y66: 313.9449795 | Z66: -313.9449795 | AA66: 54.38868826 | AB66: 285.8015294 | AC66: -285.8015294 | AD66: =IF($D$9="Par",Path!R66,IF($D$9="Con",Path!U66,IF($D$9="Exp",Path!X66,IF($D$9="Hyp",Path!AA66)))) -> -1.898211979 | AE66: =IF(B65>0,K66,"") -> 57.68675399
C67: =Panels!C56 -> 57.33420674 | D67: =Panels!D56 -> 52.21573624 | F67: =IF(TH!$H$18="x",C67,0) -> 57.33420674 | G67: =IF(TH!$H$18="x",D67,0) -> 52.21573624 | H67: =SUM(C67:C68)/2 -> 57.56475389 | I67: =SUM(D67:D68)/2 -> 57.7371238 | J67: =IF(TH!$H$17="x",H67,0) -> 57.56475389 | K67: =IF(TH!$H$17="x",I67,0) -> 57.7371238 | M67: =M66 -> 3.319257787 | N67: 118.5156238 | O67: 625.9917471 | P67: 312.9958735 | Q67: -312.9958735 | R67: -192.8670466 | S67: 409.4293968 | T67: -409.4293968 | U67: -87.26298235 | V67: 356.6273647 | W67: -356.6273647 | X67: -1.898211979 | Y67: 313.9449795 | Z67: -313.9449795 | AA67: 54.38868826 | AB67: 285.8015294 | AC67: -285.8015294 | AD67: =IF($D$9="Par",Path!R67,IF($D$9="Con",Path!U67,IF($D$9="Exp",Path!X67,IF($D$9="Hyp",Path!AA67)))) -> -1.898211979 | AE67: =IF(B68>0,K67,"") -> 57.7371238 | AH67: =AH76 -> Panel I (4th inside) | AI67: =C67 -> 57.33420674 | AJ67: =D67 -> 52.21573624 | AK67: =AI67+10*$E$22 -> 57.75139613 | AL67: =AJ67+10*$E$21 -> 62.2070301 | AM67: =IF(AK67-AI67<>0,(AL67-AJ67)/(AK67-AI67),"vertical") -> 23.94906074 | AN67: =IF(AM67<>"vertical",(AL67*AI67-AJ67*AK67)/(AI67-AK67),AJ67) -> -1320.884664
B68: =B65+1 -> 15 | C68: =AO68 -> 57.79530103 | D68: =AP68 -> 63.25851137 | F68: =IF(TH!$H$18="x",C68,0) -> 57.79530103 | G68: =IF(TH!$H$18="x",D68,0) -> 63.25851137 | J68: =J67 -> 57.56475389 | K68: =K67 -> 57.7371238 | M68: =M67 -> 3.319257787 | N68: 118.5156238 | O68: 625.9917471 | P68: 312.9958735 | Q68: -312.9958735 | R68: -192.8670466 | S68: 409.4293968 | T68: -409.4293968 | U68: -87.26298235 | V68: 356.6273647 | W68: -356.6273647 | X68: -1.898211979 | Y68: 313.9449795 | Z68: -313.9449795 | AA68: 54.38868826 | AB68: 285.8015294 | AC68: -285.8015294 | AD68: =IF($D$9="Par",Path!R68,IF($D$9="Con",Path!U68,IF($D$9="Exp",Path!X68,IF($D$9="Hyp",Path!AA68)))) -> -1.898211979 | AE68: =IF(B68>0,K68,"") -> 57.7371238 | AH68: =Panels!A42 -> Panel G (2nd inside) | AI68: =Panels!C43 -> 35.13861422 | AJ68: =Panels!D43 -> 61.36313367 | AK68: =Panels!C44 -> 67.95563071 | AL68: =Panels!D44 -> 64.10848835 | AM68: =(AL68-AJ68)/(AK68-AI68) -> 0.08365643733 | AN68: =(AL68*AI68-AJ68*AK68)/(AI68-AK68) -> 58.42356239 | AO68: =IF(AM67<>"vertical",(AN67-AN68)/(AM68-AM67),AI67) -> 57.79530103 | AP68: =AO68*AM68+AN68 -> 63.25851137
J69: =J68 -> 57.56475389 | K69: =K68 -> 57.7371238 | M69: =((H67-H64)^2+(I67-I64)^2)^0.5 -> 1.203158026 | N69: =N66+M69 -> 119.7187818 | O69: =((C67-C68)^2+(D67-D68)^2)^0.5*Path!$F$3 -> 631.7550413 | P69: 315.8775206 | Q69: -315.8775206 | R69: -192.858923 | S69: 412.3069822 | T69: -412.3069822 | U69: -86.41049404 | V69: 359.0827677 | W69: -359.0827677 | X69: 5.482456697e-05 | Y69: 315.8774932 | Z69: -315.8774932 | AA69: 56.95511261 | AB69: 287.3999643 | AC69: -287.3999643 | AD69: =IF($D$9="Par",Path!R69,IF($D$9="Con",Path!U69,IF($D$9="Exp",Path!X69,IF($D$9="Hyp",Path!AA69)))) -> 5.482456697e-05 | AE69: =IF(B68>0,K69,"") -> 57.7371238
C70: =C67 -> 57.33420674 | D70: =D67 -> 52.21573624 | F70: =IF(TH!$H$18="x",C70,0) -> 57.33420674 | G70: =IF(TH!$H$18="x",D70,0) -> 52.21573624 | H70: =SUM(C70:C71)/2 -> 60.10483631 | I70: =SUM(D70:D71)/2 -> 57.94961805 | J70: =IF(TH!$H$17="x",H70,0) -> 60.10483631 | K70: =IF(TH!$H$17="x",I70,0) -> 57.94961805 | M70: =M69 -> 1.203158026 | N70: 119.7187818 | O70: 631.7550413 | P70: 315.8775206 | Q70: -315.8775206 | R70: -192.858923 | S70: 412.3069822 | T70: -412.3069822 | U70: -86.41049404 | V70: 359.0827677 | W70: -359.0827677 | X70: 5.482456697e-05 | Y70: 315.8774932 | Z70: -315.8774932 | AA70: 56.95511261 | AB70: 287.3999643 | AC70: -287.3999643 | AD70: =IF($D$9="Par",Path!R70,IF($D$9="Con",Path!U70,IF($D$9="Exp",Path!X70,IF($D$9="Hyp",Path!AA70)))) -> 5.482456697e-05 | AE70: =IF(B71>0,K70,"") -> 57.94961805
B71: =B68+1 -> 16 | C71: =(C68+Panels!C44)/2 -> 62.87546587 | D71: =(D68+Panels!D44)/2 -> 63.68349986 | F71: =IF(TH!$H$18="x",C71,0) -> 62.87546587 | G71: =IF(TH!$H$18="x",D71,0) -> 63.68349986 | J71: =J70 -> 60.10483631 | K71: =K70 -> 57.94961805 | M71: =M70 -> 1.203158026 | N71: 119.7187818 | O71: 631.7550413 | P71: 315.8775206 | Q71: -315.8775206 | R71: -192.858923 | S71: 412.3069822 | T71: -412.3069822 | U71: -86.41049404 | V71: 359.0827677 | W71: -359.0827677 | X71: 5.482456697e-05 | Y71: 315.8774932 | Z71: -315.8774932 | AA71: 56.95511261 | AB71: 287.3999643 | AC71: -287.3999643 | AD71: =IF($D$9="Par",Path!R71,IF($D$9="Con",Path!U71,IF($D$9="Exp",Path!X71,IF($D$9="Hyp",Path!AA71)))) -> 5.482456697e-05 | AE71: =IF(B71>0,K71,"") -> 57.94961805
J72: =J71 -> 60.10483631 | K72: =K71 -> 57.94961805 | M72: =((H70-H67)^2+(I70-I67)^2)^0.5 -> 2.548955178 | N72: =N69+M72 -> 122.267737 | O72: =((C70-C71)^2+(D70-D71)^2)^0.5*Path!$F$3 -> 728.0109865 | P72: 364.0054933 | Q72: -364.0054933 | R72: -108.7956172 | S72: 418.4033019 | T72: -418.4033019 | U72: -0.6140106631 | V72: 364.3124986 | W72: -364.3124986 | X72: 87.9889576 | Y72: 320.0110145 | Z72: -320.0110145 | AA72: 146.3452142 | AB72: 290.8328862 | AC72: -290.8328862 | AD72: =IF($D$9="Par",Path!R72,IF($D$9="Con",Path!U72,IF($D$9="Exp",Path!X72,IF($D$9="Hyp",Path!AA72)))) -> 87.9889576 | AE72: =IF(B71>0,K72,"") -> 57.94961805
C73: =C70 -> 57.33420674 | D73: =D70 -> 52.21573624 | F73: =IF(TH!$H$18="x",C73,0) -> 57.33420674 | G73: =IF(TH!$H$18="x",D73,0) -> 52.21573624 | H73: =SUM(C73:C74)/2 -> 62.88353611 | I73: =SUM(D73:D74)/2 -> 55.30976296 | J73: =IF(TH!$H$17="x",H73,0) -> 62.88353611 | K73: =IF(TH!$H$17="x",I73,0) -> 55.30976296 | M73: =M72 -> 2.548955178 | N73: 122.267737 | O73: 728.0109865 | P73: 364.0054933 | Q73: -364.0054933 | R73: -108.7956172 | S73: 418.4033019 | T73: -418.4033019 | U73: -0.6140106631 | V73: 364.3124986 | W73: -364.3124986 | X73: 87.9889576 | Y73: 320.0110145 | Z73: -320.0110145 | AA73: 146.3452142 | AB73: 290.8328862 | AC73: -290.8328862 | AD73: =IF($D$9="Par",Path!R73,IF($D$9="Con",Path!U73,IF($D$9="Exp",Path!X73,IF($D$9="Hyp",Path!AA73)))) -> 87.9889576 | AE73: =IF(B74>0,K73,"") -> 55.30976296
B74: =B71+1 -> 17 | C74: =(C77+Panels!C44)/2 -> 68.43286547 | D74: =(D77+Panels!D44)/2 -> 58.40378969 | F74: =IF(TH!$H$18="x",C74,0) -> 68.43286547 | G74: =IF(TH!$H$18="x",D74,0) -> 58.40378969 | J74: =J73 -> 62.88353611 | K74: =K73 -> 55.30976296 | M74: =M73 -> 2.548955178 | N74: 122.267737 | O74: 728.0109865 | P74: 364.0054933 | Q74: -364.0054933 | R74: -108.7956172 | S74: 418.4033019 | T74: -418.4033019 | U74: -0.6140106631 | V74: 364.3124986 | W74: -364.3124986 | X74: 87.9889576 | Y74: 320.0110145 | Z74: -320.0110145 | AA74: 146.3452142 | AB74: 290.8328862 | AC74: -290.8328862 | AD74: =IF($D$9="Par",Path!R74,IF($D$9="Con",Path!U74,IF($D$9="Exp",Path!X74,IF($D$9="Hyp",Path!AA74)))) -> 87.9889576 | AE74: =IF(B74>0,K74,"") -> 55.30976296
J75: =J74 -> 62.88353611 | K75: =K74 -> 55.30976296 | M75: =((H73-H70)^2+(I73-I70)^2)^0.5 -> 3.832754551 | N75: =N72+M75 -> 126.1004916 | O75: =((C73-C74)^2+(D73-D74)^2)^0.5*Path!$F$3 -> 726.3419762 | P75: 363.1709881 | Q75: -363.1709881 | R75: -128.7981763 | S75: 427.5700763 | T75: -427.5700763 | U75: -18.15280032 | V75: 372.2473883 | W75: -372.2473883 | X75: 73.68507184 | Y75: 326.3284522 | Z75: -326.3284522 | AA75: 134.1103738 | AB75: 296.1158012 | AC75: -296.1158012 | AD75: =IF($D$9="Par",Path!R75,IF($D$9="Con",Path!U75,IF($D$9="Exp",Path!X75,IF($D$9="Hyp",Path!AA75)))) -> 73.68507184 | AE75: =IF(B74>0,K75,"") -> 55.30976296
C76: =C73 -> 57.33420674 | D76: =D73 -> 52.21573624 | F76: =IF(TH!$H$18="x",C76,0) -> 57.33420674 | G76: =IF(TH!$H$18="x",D76,0) -> 52.21573624 | H76: =SUM(C76:C77)/2 -> 63.12215349 | I76: =SUM(D76:D77)/2 -> 52.45741364 | J76: =IF(TH!$H$17="x",H76,0) -> 63.12215349 | K76: =IF(TH!$H$17="x",I76,0) -> 52.45741364 | M76: =M75 -> 3.832754551 | N76: 126.1004916 | O76: 726.3419762 | P76: =O76/2 -> 363.1709881 | Q76: =-P76 -> -363.1709881 | R76: -128.7981763 | S76: 427.5700763 | T76: =-S76 -> -427.5700763 | U76: -18.15280032 | V76: 372.2473883 | W76: -372.2473883 | X76: 73.68507184 | Y76: 326.3284522 | Z76: -326.3284522 | AA76: 134.1103738 | AB76: 296.1158012 | AC76: -296.1158012 | AD76: =IF($D$9="Par",Path!R76,IF($D$9="Con",Path!U76,IF($D$9="Exp",Path!X76,IF($D$9="Hyp",Path!AA76)))) -> 73.68507184 | AE76: =IF(B77>0,K76,"") -> 52.45741364 | AH76: =Panels!A54 -> Panel I (4th inside) | AI76: =Panels!C56 -> 57.33420674 | AJ76: =Panels!D56 -> 52.21573624 | AK76: =AI76+10*$E$21 -> 67.3255006 | AL76: =AJ76+10*$E$22 -> 52.63292562 | AM76: =IF(AK76-AI76<>0,(AL76-AJ76)/(AK76-AI76),"vertical") -> 0.04175529099 | AN76: =IF(AM76<>"vertical",(AL76*AI76-AJ76*AK76)/(AI76-AK76),AJ76) -> 49.82172975
B77: =B74+1 -> 18 | C77: =AO77 -> 68.91010024 | D77: =AP77 -> 52.69909104 | F77: =IF(TH!$H$18="x",C77,0) -> 68.91010024 | G77: =IF(TH!$H$18="x",D77,0) -> 52.69909104 | J77: =J76 -> 63.12215349 | K77: =K76 -> 52.45741364 | M77: =M76 -> 3.832754551 | N77: 126.1004916 | O77: 726.3419762 | P77: 363.1709881 | Q77: -363.1709881 | R77: -128.7981763 | S77: 427.5700763 | T77: -427.5700763 | U77: -18.15280032 | V77: 372.2473883 | W77: -372.2473883 | X77: 73.68507184 | Y77: 326.3284522 | Z77: -326.3284522 | AA77: 134.1103738 | AB77: 296.1158012 | AC77: -296.1158012 | AD77: =IF($D$9="Par",Path!R77,IF($D$9="Con",Path!U77,IF($D$9="Exp",Path!X77,IF($D$9="Hyp",Path!AA77)))) -> 73.68507184 | AE77: =IF(B77>0,K77,"") -> 52.45741364 | AH77: =Panels!A60 -> Panel J (5th inside) | AI77: =Panels!C60 -> 67.85559243 | AJ77: =Panels!D60 -> 65.30431122 | AK77: =Panels!C61 -> 71.91953626 | AL77: =Panels!D61 -> 16.72533796 | AM77: =(AL77-AJ77)/(AK77-AI77) -> -11.95365272 | AN77: =(AL77*AI77-AJ77*AK77)/(AI77-AK77) -> 876.4264985 | AO77: =IF(AM76<>"vertical",(AN76-AN77)/(AM77-AM76),AI76) -> 68.91010024 | AP77: =AO77*AM77+AN77 -> 52.69909104
J78: =J77 -> 63.12215349 | K78: =K77 -> 52.45741364 | M78: =((H76-H73)^2+(I76-I73)^2)^0.5 -> 2.862312867 | N78: =N75+M78 -> 128.9628044 | O78: =((C76-C77)^2+(D76-D77)^2)^0.5*Path!$F$3 -> 662.2546404 | P78: 331.1273202 | Q78: -331.1273202 | R78: -206.5770628 | S78: 434.4158516 | T78: -434.4158516 | U78: -94.20325194 | V78: 378.2289462 | W78: -378.2289462 | X78: -0.0004507398946 | Y78: 331.1275456 | Z78: -331.1275456 | AA78: 61.93913208 | AB78: 300.1577541 | AC78: -300.1577541 | AD78: =IF($D$9="Par",Path!R78,IF($D$9="Con",Path!U78,IF($D$9="Exp",Path!X78,IF($D$9="Hyp",Path!AA78)))) -> -0.0004507398946 | AE78: =IF(B77>0,K78,"") -> 52.45741364
C79: =C82 -> 71.91953626 | D79: =D82 -> 16.72533796 | F79: =IF(TH!$H$18="x",C79,0) -> 71.91953626 | G79: =IF(TH!$H$18="x",D79,0) -> 16.72533796 | H79: =SUM(C79:C80)/2 -> 64.6268715 | I79: =SUM(D79:D80)/2 -> 16.42083062 | J79: =IF(TH!$H$17="x",H79,0) -> 64.6268715 | K79: =IF(TH!$H$17="x",I79,0) -> 16.42083062 | M79: =M78 -> 2.862312867 | N79: 128.9628044 | O79: 662.2546404 | P79: =O79/2 -> 331.1273202 | Q79: =-P79 -> -331.1273202 | R79: -206.5770628 | S79: 434.4158516 | T79: =-S79 -> -434.4158516 | U79: -94.20325194 | V79: 378.2289462 | W79: -378.2289462 | X79: -0.0004507398946 | Y79: 331.1275456 | Z79: -331.1275456 | AA79: 61.93913208 | AB79: 300.1577541 | AC79: -300.1577541 | AD79: =IF($D$9="Par",Path!R79,IF($D$9="Con",Path!U79,IF($D$9="Exp",Path!X79,IF($D$9="Hyp",Path!AA79)))) -> -0.0004507398946 | AE79: =IF(B80>0,K79,"") -> 16.42083062 | AH79: =AH52 -> Panel H (3rd inside) | AI79: =Panels!C56 -> 57.33420674 | AJ79: =Panels!D56 -> 52.21573624 | AK79: =Panels!C57 -> 57.33420674 | AL79: =Panels!D57 -> 1.9 | AM79: =IF(AK79-AI79<>0,(AL79-AJ79)/(AK79-AI79),"vertical") -> vertical | AN79: =IF(AM79<>"vertical",(AL79*AI79-AJ79*AK79)/(AI79-AK79),AJ79) -> 52.21573624
B80: =B77+1 -> 19 | C80: =AO80 -> 57.33420674 | D80: =AP80 -> 16.11632328 | F80: =IF(TH!$H$18="x",C80,0) -> 57.33420674 | G80: =IF(TH!$H$18="x",D80,0) -> 16.11632328 | J80: =J79 -> 64.6268715 | K80: =K79 -> 16.42083062 | M80: =M79 -> 2.862312867 | N80: 128.9628044 | O80: 662.2546404 | P80: 331.1273202 | Q80: -331.1273202 | R80: -206.5770628 | S80: 434.4158516 | T80: -434.4158516 | U80: -94.20325194 | V80: 378.2289462 | W80: -378.2289462 | X80: -0.0004507398946 | Y80: 331.1275456 | Z80: -331.1275456 | AA80: 61.93913208 | AB80: 300.1577541 | AC80: -300.1577541 | AD80: =IF($D$9="Par",Path!R80,IF($D$9="Con",Path!U80,IF($D$9="Exp",Path!X80,IF($D$9="Hyp",Path!AA80)))) -> -0.0004507398946 | AE80: =IF(B80>0,K80,"") -> 16.42083062 | AH80: Sample point 10 | AI80: =C79 -> 71.91953626 | AJ80: =D79 -> 16.72533796 | AK80: =AI80+10*$E$21 -> 81.91083012 | AL80: =AJ80+10*$E$22 -> 17.14252734 | AM80: =(AL80-AJ80)/(AK80-AI80) -> 0.04175529099 | AN80: =(AL80*AI80-AJ80*AK80)/(AI80-AK80) -> 13.72231679 | AO80: =IF(AM79<>"vertical",(AN79-AN80)/(AM80-AM79),AI79) -> 57.33420674 | AP80: =AO80*AM80+AN80 -> 16.11632328
J81: =J80 -> 64.6268715 | K81: =K80 -> 16.42083062 | M81: =((H79-H76)^2+(I79-I76)^2)^0.5 -> 36.06798431 | N81: =N78+M81 -> 165.0307887 | O81: =((C79-C80)^2+(D79-D80)^2)^0.5*Path!$F$3 -> 834.4238962 | P81: 417.2119481 | Q81: -417.2119481 | R81: -206.9349393 | S81: 520.6794177 | T81: -520.6794177 | U81: -80.9521087 | V81: 457.6880025 | W81: -457.6880025 | X81: 38.41073302 | Y81: 398.0065816 | Z81: -398.0065816 | AA81: 116.6993464 | AB81: 358.8622749 | AC81: -358.8622749 | AD81: =IF($D$9="Par",Path!R81,IF($D$9="Con",Path!U81,IF($D$9="Exp",Path!X81,IF($D$9="Hyp",Path!AA81)))) -> 38.41073302 | AE81: =IF(B80>0,K81,"") -> 16.42083062
C82: =C88 -> 71.91953626 | D82: =D88 -> 16.72533796 | F82: =IF(TH!$H$18="x",C82,0) -> 71.91953626 | G82: =IF(TH!$H$18="x",D82,0) -> 16.72533796 | H82: =SUM(C82:C83)/2 -> 64.6268715 | I82: =SUM(D82:D83)/2 -> 12.8667498 | J82: =IF(TH!$H$17="x",H82,0) -> 64.6268715 | K82: =IF(TH!$H$17="x",I82,0) -> 12.8667498 | M82: =M81 -> 36.06798431 | N82: 165.0307887 | O82: 834.4238962 | P82: 417.2119481 | Q82: -417.2119481 | R82: -206.9349393 | S82: 520.6794177 | T82: -520.6794177 | U82: -80.9521087 | V82: 457.6880025 | W82: -457.6880025 | X82: 38.41073302 | Y82: 398.0065816 | Z82: -398.0065816 | AA82: 116.6993464 | AB82: 358.8622749 | AC82: -358.8622749 | AD82: =IF($D$9="Par",Path!R82,IF($D$9="Con",Path!U82,IF($D$9="Exp",Path!X82,IF($D$9="Hyp",Path!AA82)))) -> 38.41073302 | AE82: =IF(B83>0,K82,"") -> 12.8667498
B83: =B80+1 -> 20 | C83: =(C80+Panels!C57)/2 -> 57.33420674 | D83: =(D80+Panels!D57)/2 -> 9.00816164 | F83: =IF(TH!$H$18="x",C83,0) -> 57.33420674 | G83: =IF(TH!$H$18="x",D83,0) -> 9.00816164 | J83: =J82 -> 64.6268715 | K83: =K82 -> 12.8667498 | M83: =M82 -> 36.06798431 | N83: 165.0307887 | O83: 834.4238962 | P83: 417.2119481 | Q83: -417.2119481 | R83: -206.9349393 | S83: 520.6794177 | T83: -520.6794177 | U83: -80.9521087 | V83: 457.6880025 | W83: -457.6880025 | X83: 38.41073302 | Y83: 398.0065816 | Z83: -398.0065816 | AA83: 116.6993464 | AB83: 358.8622749 | AC83: -358.8622749 | AD83: =IF($D$9="Par",Path!R83,IF($D$9="Con",Path!U83,IF($D$9="Exp",Path!X83,IF($D$9="Hyp",Path!AA83)))) -> 38.41073302 | AE83: =IF(B83>0,K83,"") -> 12.8667498
J84: =J83 -> 64.6268715 | K84: =K83 -> 12.8667498 | M84: =((H82-H79)^2+(I82-I79)^2)^0.5 -> 3.55408082 | N84: =N81+M84 -> 168.5848696 | O84: =((C82-C83)^2+(D82-D83)^2)^0.5*Path!$F$3 -> 943.2034757 | P84: 471.6017378 | Q84: -471.6017378 | R84: -115.1559043 | S84: 529.17969 | T84: -529.17969 | U84: 11.34847524 | V84: 465.9275002 | W84: -465.9275002 | X84: 132.628918 | Y84: 405.2872788 | Z84: -405.2872788 | AA84: 212.2013844 | AB84: 365.5010456 | AC84: -365.5010456 | AD84: =IF($D$9="Par",Path!R84,IF($D$9="Con",Path!U84,IF($D$9="Exp",Path!X84,IF($D$9="Hyp",Path!AA84)))) -> 132.628918 | AE84: =IF(B83>0,K84,"") -> 12.8667498
C85: =C88 -> 71.91953626 | D85: =D88 -> 16.72533796 | F85: =IF(TH!$H$18="x",C85,0) -> 71.91953626 | G85: =IF(TH!$H$18="x",D85,0) -> 16.72533796 | H85: =SUM(C85:C86)/2 -> 68.42796296 | I85: =SUM(D85:D86)/2 -> 9.312668979 | J85: =IF(TH!$H$17="x",H85,0) -> 68.42796296 | K85: =IF(TH!$H$17="x",I85,0) -> 9.312668979 | M85: =M84 -> 3.55408082 | N85: 168.5848696 | O85: 943.2034757 | P85: 471.6017378 | Q85: -471.6017378 | R85: -115.1559043 | S85: 529.17969 | T85: -529.17969 | U85: 11.34847524 | V85: 465.9275002 | W85: -465.9275002 | X85: 132.628918 | Y85: 405.2872788 | Z85: -405.2872788 | AA85: 212.2013844 | AB85: 365.5010456 | AC85: -365.5010456 | AD85: =IF($D$9="Par",Path!R85,IF($D$9="Con",Path!U85,IF($D$9="Exp",Path!X85,IF($D$9="Hyp",Path!AA85)))) -> 132.628918 | AE85: =IF(B86>0,K85,"") -> 9.312668979
B86: =B83+1 -> 21 | C86: =(C89+Panels!C57)/2 -> 64.93638965 | D86: =(D89+Panels!D57)/2 -> 1.9 | F86: =IF(TH!$H$18="x",C86,0) -> 64.93638965 | G86: =IF(TH!$H$18="x",D86,0) -> 1.9 | J86: =J85 -> 68.42796296 | K86: =K85 -> 9.312668979 | M86: =M85 -> 3.55408082 | N86: 168.5848696 | O86: 943.2034757 | P86: 471.6017378 | Q86: -471.6017378 | R86: -115.1559043 | S86: 529.17969 | T86: -529.17969 | U86: 11.34847524 | V86: 465.9275002 | W86: -465.9275002 | X86: 132.628918 | Y86: 405.2872788 | Z86: -405.2872788 | AA86: 212.2013844 | AB86: 365.5010456 | AC86: -365.5010456 | AD86: =IF($D$9="Par",Path!R86,IF($D$9="Con",Path!U86,IF($D$9="Exp",Path!X86,IF($D$9="Hyp",Path!AA86)))) -> 132.628918 | AE86: =IF(B86>0,K86,"") -> 9.312668979
J87: =J86 -> 68.42796296 | K87: =K86 -> 9.312668979 | M87: =((H85-H82)^2+(I85-I82)^2)^0.5 -> 5.20382424 | N87: =N84+M87 -> 173.7886938 | O87: =((C85-C86)^2+(D85-D86)^2)^0.5*Path!$F$3 -> 936.7179163 | P87: 468.3589582 | Q87: -468.3589582 | R87: -146.5333696 | S87: 541.625643 | T87: -541.625643 | U87: -19.53055532 | V87: 478.1242358 | W87: -478.1242358 | X87: 104.3409238 | Y87: 416.1884963 | Z87: -416.1884963 | AA87: 185.6667408 | AB87: 375.5255878 | AC87: -375.5255878 | AD87: =IF($D$9="Par",Path!R87,IF($D$9="Con",Path!U87,IF($D$9="Exp",Path!X87,IF($D$9="Hyp",Path!AA87)))) -> 104.3409238 | AE87: =IF(B86>0,K87,"") -> 9.312668979
C88: =Panels!C61 -> 71.91953626 | D88: =Panels!D61 -> 16.72533796 | F88: =IF(TH!$H$18="x",C88,0) -> 71.91953626 | G88: =IF(TH!$H$18="x",D88,0) -> 16.72533796 | H88: =SUM(C88:C89)/2 -> 72.22905441 | I88: =SUM(D88:D89)/2 -> 9.312668979 | J88: =IF(TH!$H$17="x",H88,0) -> 72.22905441 | K88: =IF(TH!$H$17="x",I88,0) -> 9.312668979 | M88: =M87 -> 5.20382424 | N88: 173.7886938 | O88: 936.7179163 | P88: 468.3589582 | Q88: -468.3589582 | R88: -146.5333696 | S88: 541.625643 | T88: -541.625643 | U88: -19.53055532 | V88: 478.1242358 | W88: -478.1242358 | X88: 104.3409238 | Y88: 416.1884963 | Z88: -416.1884963 | AA88: 185.6667408 | AB88: 375.5255878 | AC88: -375.5255878 | AD88: =IF($D$9="Par",Path!R88,IF($D$9="Con",Path!U88,IF($D$9="Exp",Path!X88,IF($D$9="Hyp",Path!AA88)))) -> 104.3409238 | AE88: =IF(B89>0,K88,"") -> 9.312668979
B89: =B86+1 -> 22 | C89: =C88+(D88-D89)*E$23 -> 72.53857256 | D89: =Panels!$D$57 -> 1.9 | F89: =IF(TH!$H$18="x",C89,0) -> 72.53857256 | G89: =IF(TH!$H$18="x",D89,0) -> 1.9 | J89: =J88 -> 72.22905441 | K89: =K88 -> 9.312668979 | M89: =M88 -> 5.20382424 | N89: 173.7886938 | O89: 936.7179163 | P89: 468.3589582 | Q89: -468.3589582 | R89: -146.5333696 | S89: 541.625643 | T89: -541.625643 | U89: -19.53055532 | V89: 478.1242358 | W89: -478.1242358 | X89: 104.3409238 | Y89: 416.1884963 | Z89: -416.1884963 | AA89: 185.6667408 | AB89: 375.5255878 | AC89: -375.5255878 | AD89: =IF($D$9="Par",Path!R89,IF($D$9="Con",Path!U89,IF($D$9="Exp",Path!X89,IF($D$9="Hyp",Path!AA89)))) -> 104.3409238 | AE89: =IF(B89>0,K89,"") -> 9.312668979
J90: =J89 -> 72.22905441 | K90: =K89 -> 9.312668979 | M90: =((H88-H85)^2+(I88-I85)^2)^0.5 -> 3.801091454 | N90: =N87+M90 -> 177.5897853 | O90: =((C88-C89)^2+(D88-D89)^2)^0.5*Path!$F$3 -> 848.1547329 | P90: 424.0773665 | Q90: -424.0773665 | R90: -253.278645 | S90: 550.716689 | T90: -550.716689 | U90: -126.110936 | V90: 487.1328345 | W90: -487.1328345 | X90: -0.517404969 | Y90: 424.3360689 | Z90: -424.3360689 | AA90: 81.98927674 | AB90: 383.0827281 | AC90: -383.0827281 | AD90: =IF($D$9="Par",Path!R90,IF($D$9="Con",Path!U90,IF($D$9="Exp",Path!X90,IF($D$9="Hyp",Path!AA90)))) -> -0.517404969 | AE90: =IF(B89>0,K90,"") -> 9.312668979
C91: =Panels!C62 -> 73.11535913 | D91: =Panels!D62 -> 16.82537624 | F91: =IF(TH!$H$18="x",C91,0) -> 73.11535913 | G91: =IF(TH!$H$18="x",D91,0) -> 16.82537624 | H91: =SUM(C91:C92)/2 -> 73.42696585 | I91: =SUM(D91:D92)/2 -> 9.362688119 | J91: =IF(TH!$H$17="x",H91,0) -> 73.42696585 | K91: =IF(TH!$H$17="x",I91,0) -> 9.362688119 | M91: =M90 -> 3.801091454 | N91: 177.5897853 | O91: 848.1547329 | P91: 424.0773665 | Q91: -424.0773665 | R91: -253.278645 | S91: 550.716689 | T91: -550.716689 | U91: -126.110936 | V91: 487.1328345 | W91: -487.1328345 | X91: -0.517404969 | Y91: 424.3360689 | Z91: -424.3360689 | AA91: 81.98927674 | AB91: 383.0827281 | AC91: -383.0827281 | AD91: =IF($D$9="Par",Path!R91,IF($D$9="Con",Path!U91,IF($D$9="Exp",Path!X91,IF($D$9="Hyp",Path!AA91)))) -> -0.517404969 | AE91: =IF(B92>0,K91,"") -> 9.362688119
B92: =B89+1 -> 23 | C92: =C91+(D91-D92)*E23 -> 73.73857256 | D92: =Panels!D28 -> 1.9 | F92: =IF(TH!$H$18="x",C92,0) -> 73.73857256 | G92: =IF(TH!$H$18="x",D92,0) -> 1.9 | J92: =J91 -> 73.42696585 | K92: =K91 -> 9.362688119 | M92: =M91 -> 3.801091454 | N92: 177.5897853 | O92: 848.1547329 | P92: 424.0773665 | Q92: -424.0773665 | R92: =($P92-S92)*2 -> -253.278645 | S92: 550.716689 | T92: -550.716689 | U92: =($P92-V92)*2 -> -126.110936 | V92: 487.1328345 | W92: -487.1328345 | X92: =($P92-Y92)*2 -> -0.517404969 | Y92: 424.3360689 | Z92: -424.3360689 | AA92: =($P92-AB92)*2 -> 81.98927674 | AB92: 383.0827281 | AC92: -383.0827281 | AD92: =IF($D$9="Par",Path!R92,IF($D$9="Con",Path!U92,IF($D$9="Exp",Path!X92,IF($D$9="Hyp",Path!AA92)))) -> -0.517404969 | AE92: =IF(B92>0,K92,"") -> 9.362688119
J93: =J92 -> 73.42696585 | K93: =K92 -> 9.362688119 | M93: =((H91-H88)^2+(I91-I88)^2)^0.5 -> 1.198955263 | N93: =N90+M93 -> 178.7887405 | O93: =((C91-C92)^2+(D91-D92)^2)^0.5*Path!$F$3 -> 853.8779038 | P93: 426.9389519 | Q93: -426.9389519 | R93: -253.2905414 | S93: 553.5842226 | T93: -553.5842226 | U93: -126.1057059 | V93: 489.9918048 | W93: -489.9918048 | X93: 3.644413482e-08 | Y93: 426.9389519 | Z93: -426.9389519 | AA93: 82.86094547 | AB93: 385.5084791 | AC93: -385.5084791 | AD93: =IF($D$9="Par",Path!R93,IF($D$9="Con",Path!U93,IF($D$9="Exp",Path!X93,IF($D$9="Hyp",Path!AA93)))) -> 3.644413482e-08 | AE93: =IF(B92>0,K93,"") -> 9.362688119
C94: =C91 -> 73.11535913 | D94: =D91 -> 16.82537624 | F94: =IF(TH!$H$18="x",C94,0) -> 73.11535913 | G94: =IF(TH!$H$18="x",D94,0) -> 16.82537624 | H94: =SUM(C94:C95)/2 -> 77.37732271 | I94: =SUM(D94:D95)/2 -> 9.362688119 | J94: =IF(TH!$H$17="x",H94,0) -> 77.37732271 | K94: =IF(TH!$H$17="x",I94,0) -> 9.362688119 | M94: =M93 -> 1.198955263 | N94: 178.7887405 | O94: 853.8779038 | P94: =O94/2 -> 426.9389519 | Q94: =-P94 -> -426.9389519 | R94: -253.2905414 | S94: 553.5842226 | T94: =-S94 -> -553.5842226 | U94: -126.1057059 | V94: =PI()*($M$3*($N94-$E$4)*2+$K$3)^2/2 -> 489.9918048 | W94: -489.9918048 | X94: 3.644413482e-08 | Y94: 426.9389519 | Z94: -426.9389519 | AA94: 82.86094547 | AB94: 385.5084791 | AC94: -385.5084791 | AD94: =IF($D$9="Par",Path!R94,IF($D$9="Con",Path!U94,IF($D$9="Exp",Path!X94,IF($D$9="Hyp",Path!AA94)))) -> 3.644413482e-08 | AE94: =IF(B95>0,K94,"") -> 9.362688119
B95: =B92+1 -> 24 | C95: =(C92+Panels!C14)/2 -> 81.63928628 | D95: =D92 -> 1.9 | F95: =IF(TH!$H$18="x",C95,0) -> 81.63928628 | G95: =IF(TH!$H$18="x",D95,0) -> 1.9 | J95: =J94 -> 77.37732271 | K95: =K94 -> 9.362688119 | M95: =M94 -> 1.198955263 | N95: 178.7887405 | O95: 853.8779038 | P95: 426.9389519 | Q95: -426.9389519 | R95: -253.2905414 | S95: =(($D$5-$D$4)*(N95-$E$4)/($E$5-$E$4)+$D$4)/2 -> 553.5842226 | T95: -553.5842226 | U95: -126.1057059 | V95: 489.9918048 | W95: =-V95 -> -489.9918048 | X95: 3.644413482e-08 | Y95: =($D$4*EXP($O$3*(N95-$E$4)))/2 -> 426.9389519 | Z95: =-Y95 -> -426.9389519 | AA95: 82.86094547 | AB95: =($D$4*(COSH((N95-$E$4)/($E$5-$E$4))+$Q$3*SINH((N95-$E$4)/($E$5-$E$4)))^2)/2 -> 385.5084791 | AC95: =-AB95 -> -385.5084791 | AD95: =IF($D$9="Par",Path!R95,IF($D$9="Con",Path!U95,IF($D$9="Exp",Path!X95,IF($D$9="Hyp",Path!AA95)))) -> 3.644413482e-08 | AE95: =IF(B95>0,K95,"") -> 9.362688119
J96: =J95 -> 77.37732271 | K96: =K95 -> 9.362688119 | M96: =((H94-H91)^2+(I94-I91)^2)^0.5 -> 3.95035686 | N96: =N93+M96 -> 182.7390974 | O96: =((C94-C95)^2+(D94-D95)^2)^0.5*Path!$F$3 -> 982.4608353 | P96: 491.2304177 | Q96: -491.2304177 | R96: -143.603696 | S96: 563.0322657 | T96: -563.0322657 | U96: -16.48080376 | V96: 499.4708196 | W96: -499.4708196 | X96: 111.20381 | Y96: 435.6285127 | Z96: -435.6285127 | AA96: 195.1679866 | AB96: 393.6464244 | AC96: -393.6464244 | AD96: =IF($D$9="Par",Path!R96,IF($D$9="Con",Path!U96,IF($D$9="Exp",Path!X96,IF($D$9="Hyp",Path!AA96)))) -> 111.20381 | AE96: =IF(B95>0,K96,"") -> 9.362688119
C97: =C94 -> 73.11535913 | D97: =D94 -> 16.82537624 | F97: =IF(TH!$H$18="x",C97,0) -> 73.11535913 | G97: =IF(TH!$H$18="x",D97,0) -> 16.82537624 | H97: =SUM(C97:C98)/2 -> 81.32767957 | I97: =SUM(D97:D98)/2 -> 13.26548609 | J97: =IF(TH!$H$17="x",H97,0) -> 81.32767957 | K97: =IF(TH!$H$17="x",I97,0) -> 13.26548609 | M97: =M96 -> 3.95035686 | N97: 182.7390974 | O97: 982.4608353 | P97: 491.2304177 | Q97: -491.2304177 | R97: -143.603696 | S97: 563.0322657 | T97: -563.0322657 | U97: -16.48080376 | V97: 499.4708196 | W97: -499.4708196 | X97: 111.20381 | Y97: 435.6285127 | Z97: -435.6285127 | AA97: 195.1679866 | AB97: 393.6464244 | AC97: -393.6464244 | AD97: =IF($D$9="Par",Path!R97,IF($D$9="Con",Path!U97,IF($D$9="Exp",Path!X97,IF($D$9="Hyp",Path!AA97)))) -> 111.20381 | AE97: =IF(B98>0,K97,"") -> 13.26548609
B98: =B95+1 -> 25 | C98: =C101 -> 89.54 | D98: =(D95+D101)/2 -> 9.705595949 | F98: =IF(TH!$H$18="x",C98,0) -> 89.54 | G98: =IF(TH!$H$18="x",D98,0) -> 9.705595949 | J98: =J97 -> 81.32767957 | K98: =K97 -> 13.26548609 | M98: =M97 -> 3.95035686 | N98: 182.7390974 | O98: 982.4608353 | P98: 491.2304177 | Q98: -491.2304177 | R98: -143.603696 | S98: 563.0322657 | T98: -563.0322657 | U98: -16.48080376 | V98: 499.4708196 | W98: -499.4708196 | X98: 111.20381 | Y98: 435.6285127 | Z98: -435.6285127 | AA98: 195.1679866 | AB98: 393.6464244 | AC98: -393.6464244 | AD98: =IF($D$9="Par",Path!R98,IF($D$9="Con",Path!U98,IF($D$9="Exp",Path!X98,IF($D$9="Hyp",Path!AA98)))) -> 111.20381 | AE98: =IF(B98>0,K98,"") -> 13.26548609
J99: =J98 -> 81.32767957 | K99: =K98 -> 13.26548609 | M99: =((H97-H94)^2+(I97-I94)^2)^0.5 -> 5.553120866 | N99: =N96+M99 -> 188.2922183 | O99: =((C97-C98)^2+(D97-D98)^2)^0.5*Path!$F$3 -> 1023.243987 | P99: 511.6219937 | Q99: -511.6219937 | R99: -129.3832709 | S99: 576.3136291 | T99: -576.3136291 | U99: -2.654556938 | V99: 512.9492721 | W99: -512.9492721 | X99: 126.9569265 | Y99: 448.1435304 | Z99: -448.1435304 | AA99: 212.2987398 | AB99: 405.4726238 | AC99: -405.4726238 | AD99: =IF($D$9="Par",Path!R99,IF($D$9="Con",Path!U99,IF($D$9="Exp",Path!X99,IF($D$9="Hyp",Path!AA99)))) -> 126.9569265 | AE99: =IF(B98>0,K99,"") -> 13.26548609
C100: =C94 -> 73.11535913 | D100: =D94 -> 16.82537624 | F100: =IF(TH!$H$18="x",C100,0) -> 73.11535913 | G100: =IF(TH!$H$18="x",D100,0) -> 16.82537624 | H100: =SUM(C100:C101)/2 -> 81.32767957 | I100: =SUM(D100:D101)/2 -> 17.16828407 | J100: =IF(TH!$H$17="x",H100,0) -> 81.32767957 | K100: =IF(TH!$H$17="x",I100,0) -> 17.16828407 | M100: =M99 -> 5.553120866 | N100: 188.2922183 | O100: 1023.243987 | P100: 511.6219937 | Q100: -511.6219937 | R100: -129.3832709 | S100: 576.3136291 | T100: -576.3136291 | U100: -2.654556938 | V100: 512.9492721 | W100: -512.9492721 | X100: 126.9569265 | Y100: 448.1435304 | Z100: -448.1435304 | AA100: 212.2987398 | AB100: 405.4726238 | AC100: -405.4726238 | AD100: =IF($D$9="Par",Path!R100,IF($D$9="Con",Path!U100,IF($D$9="Exp",Path!X100,IF($D$9="Hyp",Path!AA100)))) -> 126.9569265 | AE100: =IF(B101>0,K100,"") -> 17.16828407
B101: =B98+1 -> 26 | C101: =Panels!C14 -> 89.54 | D101: =D100+(C101-C100)*E23 -> 17.5111919 | F101: =IF(TH!$H$18="x",C101,0) -> 89.54 | G101: =IF(TH!$H$18="x",D101,0) -> 17.5111919 | J101: =J100 -> 81.32767957 | K101: =K100 -> 17.16828407 | M101: =M100 -> 5.553120866 | N101: 188.2922183 | O101: 1023.243987 | P101: 511.6219937 | Q101: -511.6219937 | R101: -129.3832709 | S101: 576.3136291 | T101: -576.3136291 | U101: -2.654556938 | V101: 512.9492721 | W101: -512.9492721 | X101: 126.9569265 | Y101: 448.1435304 | Z101: -448.1435304 | AA101: 212.2987398 | AB101: 405.4726238 | AC101: -405.4726238 | AD101: =IF($D$9="Par",Path!R101,IF($D$9="Con",Path!U101,IF($D$9="Exp",Path!X101,IF($D$9="Hyp",Path!AA101)))) -> 126.9569265 | AE101: =IF(B101>0,K101,"") -> 17.16828407
J102: =J101 -> 81.32767957 | K102: =K101 -> 17.16828407 | M102: =((H100-H97)^2+(I100-I97)^2)^0.5 -> 3.902797974 | N102: =N99+M102 -> 192.1950162 | O102: =((C100-C101)^2+(D100-D101)^2)^0.5*Path!$F$3 -> 939.6505448 | P102: 469.8252724 | Q102: -469.8252724 | R102: -231.6453071 | S102: 585.6479259 | T102: -585.6479259 | U102: -105.4083816 | V102: 522.5294632 | W102: -522.5294632 | X102: 25.34301597 | Y102: 457.1537644 | Z102: -457.1537644 | AA102: 111.5254428 | AB102: 414.062551 | AC102: -414.062551 | AD102: =IF($D$9="Par",Path!R102,IF($D$9="Con",Path!U102,IF($D$9="Exp",Path!X102,IF($D$9="Hyp",Path!AA102)))) -> 25.34301597 | AE102: =IF(B101>0,K102,"") -> 17.16828407
C103: =Panels!C63 -> 69.0514153 | D103: =Panels!D63 -> 65.4043495 | F103: =IF(TH!$H$18="x",C103,0) -> 69.0514153 | G103: =IF(TH!$H$18="x",D103,0) -> 65.4043495 | H103: =SUM(C103:C104)/2 -> 79.29570765 | I103: =SUM(D103:D104)/2 -> 65.83210291 | J103: =IF(TH!$H$17="x",H103,0) -> 79.29570765 | K103: =IF(TH!$H$17="x",I103,0) -> 65.83210291 | M103: =M102 -> 3.902797974 | N103: 192.1950162 | O103: 939.6505448 | P103: 469.8252724 | Q103: -469.8252724 | R103: -231.6453071 | S103: 585.6479259 | T103: -585.6479259 | U103: -105.4083816 | V103: 522.5294632 | W103: -522.5294632 | X103: 25.34301597 | Y103: 457.1537644 | Z103: -457.1537644 | AA103: 111.5254428 | AB103: 414.062551 | AC103: -414.062551 | AD103: =IF($D$9="Par",Path!R103,IF($D$9="Con",Path!U103,IF($D$9="Exp",Path!X103,IF($D$9="Hyp",Path!AA103)))) -> 25.34301597 | AE103: =IF(B104>0,K103,"") -> 65.83210291
B104: =B101+1 -> 27 | C104: =C101 -> 89.54 | D104: =D103+(C104-C103)*E23 -> 66.25985632 | F104: =IF(TH!$H$18="x",C104,0) -> 89.54 | G104: =IF(TH!$H$18="x",D104,0) -> 66.25985632 | J104: =J103 -> 79.29570765 | K104: =K103 -> 65.83210291 | M104: =M103 -> 3.902797974 | N104: 192.1950162 | O104: 939.6505448 | P104: 469.8252724 | Q104: -469.8252724 | R104: -231.6453071 | S104: 585.6479259 | T104: -585.6479259 | U104: -105.4083816 | V104: 522.5294632 | W104: -522.5294632 | X104: 25.34301597 | Y104: 457.1537644 | Z104: -457.1537644 | AA104: 111.5254428 | AB104: 414.062551 | AC104: -414.062551 | AD104: =IF($D$9="Par",Path!R104,IF($D$9="Con",Path!U104,IF($D$9="Exp",Path!X104,IF($D$9="Hyp",Path!AA104)))) -> 25.34301597 | AE104: =IF(B104>0,K104,"") -> 65.83210291
J105: =J104 -> 79.29570765 | K105: =K104 -> 65.83210291 | M105: =((H103-H100)^2+(I103-I100)^2)^0.5 -> 48.70622316 | N105: =N102+M105 -> 240.9012394 | O105: =((C103-C104)^2+(D103-D104)^2)^0.5*Path!$F$3 -> 1172.14799 | P105: 586.0739949 | Q105: -586.0739949 | R105: -232.1285837 | S105: 702.1382867 | T105: -702.1382867 | U105: -126.9401664 | V105: 649.5440781 | W105: -649.5440781 | X105: -5.135844549e-05 | Y105: 586.0740206 | Z105: -586.0740206 | AA105: 85.53555187 | AB105: 543.3062189 | AC105: -543.3062189 | AD105: =IF($D$9="Par",Path!R105,IF($D$9="Con",Path!U105,IF($D$9="Exp",Path!X105,IF($D$9="Hyp",Path!AA105)))) -> -5.135844549e-05 | AE105: =IF(B104>0,K105,"") -> 65.83210291
C106: =C103 -> 69.0514153 | D106: =D103 -> 65.4043495 | F106: =IF(TH!$H$18="x",C106,0) -> 69.0514153 | G106: =IF(TH!$H$18="x",D106,0) -> 65.4043495 | H106: =SUM(C106:C107)/2 -> 79.29570765 | I106: =SUM(D106:D107)/2 -> 71.65213883 | J106: =IF(TH!$H$17="x",H106,0) -> 79.29570765 | K106: =IF(TH!$H$17="x",I106,0) -> 71.65213883 | M106: =M105 -> 48.70622316 | N106: 240.9012394 | O106: 1172.14799 | P106: 586.0739949 | Q106: -586.0739949 | R106: -232.1285837 | S106: 702.1382867 | T106: -702.1382867 | U106: -126.9401664 | V106: 649.5440781 | W106: -649.5440781 | X106: -5.135844549e-05 | Y106: 586.0740206 | Z106: -586.0740206 | AA106: 85.53555187 | AB106: 543.3062189 | AC106: -543.3062189 | AD106: =IF($D$9="Par",Path!R106,IF($D$9="Con",Path!U106,IF($D$9="Exp",Path!X106,IF($D$9="Hyp",Path!AA106)))) -> -5.135844549e-05 | AE106: =IF(B107>0,K106,"") -> 71.65213883
B107: =B104+1 -> 28 | C107: =C104 -> 89.54 | D107: =(D104+Panels!D32)/2 -> 77.89992816 | F107: =IF(TH!$H$18="x",C107,0) -> 89.54 | G107: =IF(TH!$H$18="x",D107,0) -> 77.89992816 | J107: =J106 -> 79.29570765 | K107: =K106 -> 71.65213883 | M107: =M106 -> 48.70622316 | N107: 240.9012394 | O107: 1172.14799 | P107: 586.0739949 | Q107: -586.0739949 | R107: -232.1285837 | S107: 702.1382867 | T107: -702.1382867 | U107: -126.9401664 | V107: 649.5440781 | W107: -649.5440781 | X107: -5.135844549e-05 | Y107: 586.0740206 | Z107: -586.0740206 | AA107: 85.53555187 | AB107: 543.3062189 | AC107: -543.3062189 | AD107: =IF($D$9="Par",Path!R107,IF($D$9="Con",Path!U107,IF($D$9="Exp",Path!X107,IF($D$9="Hyp",Path!AA107)))) -> -5.135844549e-05 | AE107: =IF(B107>0,K107,"") -> 71.65213883
J108: =J107 -> 79.29570765 | K108: =K107 -> 71.65213883 | M108: =((H106-H103)^2+(I106-I103)^2)^0.5 -> 5.82003592 | N108: =N105+M108 -> 246.7212753 | O108: =((C106-C107)^2+(D106-D107)^2)^0.5*Path!$F$3 -> 1371.746622 | P108: 685.8733112 | Q108: -685.8733112 | R108: -60.36943611 | S108: 716.0580292 | T108: -716.0580292 | U108: 40.4571419 | V108: 665.6447402 | W108: -665.6447402 | X108: 164.2816279 | Y108: 603.7324972 | Z108: -603.7324972 | AA108: 248.0310108 | AB108: 561.8578058 | AC108: -561.8578058 | AD108: =IF($D$9="Par",Path!R108,IF($D$9="Con",Path!U108,IF($D$9="Exp",Path!X108,IF($D$9="Hyp",Path!AA108)))) -> 164.2816279 | AE108: =IF(B107>0,K108,"") -> 71.65213883
C109: =C106 -> 69.0514153 | D109: =D106 -> 65.4043495 | F109: =IF(TH!$H$18="x",C109,0) -> 69.0514153 | G109: =IF(TH!$H$18="x",D109,0) -> 65.4043495 | H109: =SUM(C109:C110)/2 -> 73.9216137 | I109: =SUM(D109:D110)/2 -> 77.47217475 | J109: =IF(TH!$H$17="x",H109,0) -> 73.9216137 | K109: =IF(TH!$H$17="x",I109,0) -> 77.47217475 | M109: =M108 -> 5.82003592 | N109: 246.7212753 | O109: 1371.746622 | P109: 685.8733112 | Q109: -685.8733112 | R109: -60.36943611 | S109: 716.0580292 | T109: -716.0580292 | U109: 40.4571419 | V109: 665.6447402 | W109: -665.6447402 | X109: 164.2816279 | Y109: 603.7324972 | Z109: -603.7324972 | AA109: 248.0310108 | AB109: 561.8578058 | AC109: -561.8578058 | AD109: =IF($D$9="Par",Path!R109,IF($D$9="Con",Path!U109,IF($D$9="Exp",Path!X109,IF($D$9="Hyp",Path!AA109)))) -> 164.2816279 | AE109: =IF(B110>0,K109,"") -> 77.47217475
B110: =B107+1 -> 29 | C110: =(C113+Panels!C32)/2 -> 78.7918121 | D110: =D113 -> 89.54 | F110: =IF(TH!$H$18="x",C110,0) -> 78.7918121 | G110: =IF(TH!$H$18="x",D110,0) -> 89.54 | J110: =J109 -> 73.9216137 | K110: =K109 -> 77.47217475 | M110: =M109 -> 5.82003592 | N110: 246.7212753 | O110: 1371.746622 | P110: 685.8733112 | Q110: -685.8733112 | R110: -60.36943611 | S110: 716.0580292 | T110: -716.0580292 | U110: 40.4571419 | V110: 665.6447402 | W110: -665.6447402 | X110: 164.2816279 | Y110: 603.7324972 | Z110: -603.7324972 | AA110: 248.0310108 | AB110: 561.8578058 | AC110: -561.8578058 | AD110: =IF($D$9="Par",Path!R110,IF($D$9="Con",Path!U110,IF($D$9="Exp",Path!X110,IF($D$9="Hyp",Path!AA110)))) -> 164.2816279 | AE110: =IF(B110>0,K110,"") -> 77.47217475
J111: =J110 -> 73.9216137 | K111: =K110 -> 77.47217475 | M111: =((H109-H106)^2+(I109-I106)^2)^0.5 -> 7.921723545 | N111: =N108+M111 -> 254.6429988 | O111: =((C109-C110)^2+(D109-D110)^2)^0.5*Path!$F$3 -> 1487.703568 | P111: 743.8517839 | Q111: -743.8517839 | R111: 17.69483873 | S111: 735.0043645 | T111: -735.0043645 | U111: 111.9509924 | V111: 687.8762876 | W111: -687.8762876 | X111: 230.4521792 | Y111: 628.6256943 | Z111: -628.6256943 | AA111: 311.0436219 | AB111: 588.3299729 | AC111: -588.3299729 | AD111: =IF($D$9="Par",Path!R111,IF($D$9="Con",Path!U111,IF($D$9="Exp",Path!X111,IF($D$9="Hyp",Path!AA111)))) -> 230.4521792 | AE111: =IF(B110>0,K111,"") -> 77.47217475
C112: =C109 -> 69.0514153 | D112: =D109 -> 65.4043495 | F112: =IF(TH!$H$18="x",C112,0) -> 69.0514153 | G112: =IF(TH!$H$18="x",D112,0) -> 65.4043495 | H112: =SUM(C112:C113)/2 -> 68.54751975 | I112: =SUM(D112:D113)/2 -> 77.47217475 | J112: =IF(TH!$H$17="x",H112,0) -> 68.54751975 | K112: =IF(TH!$H$17="x",I112,0) -> 77.47217475 | M112: =M111 -> 7.921723545 | N112: 254.6429988 | O112: 1487.703568 | P112: 743.8517839 | Q112: -743.8517839 | R112: 17.69483873 | S112: 735.0043645 | T112: -735.0043645 | U112: 111.9509924 | V112: 687.8762876 | W112: -687.8762876 | X112: 230.4521792 | Y112: 628.6256943 | Z112: -628.6256943 | AA112: 311.0436219 | AB112: 588.3299729 | AC112: -588.3299729 | AD112: =IF($D$9="Par",Path!R112,IF($D$9="Con",Path!U112,IF($D$9="Exp",Path!X112,IF($D$9="Hyp",Path!AA112)))) -> 230.4521792 | AE112: =IF(B113>0,K112,"") -> 77.47217475
B113: =B110+1 -> 30 | C113: =C112-(D113-D112)*E23 -> 68.04362419 | D113: =Panels!D32 -> 89.54 | F113: =IF(TH!$H$18="x",C113,0) -> 68.04362419 | G113: =IF(TH!$H$18="x",D113,0) -> 89.54 | J113: =J112 -> 68.54751975 | K113: =K112 -> 77.47217475 | M113: =M112 -> 7.921723545 | N113: 254.6429988 | O113: 1487.703568 | P113: 743.8517839 | Q113: -743.8517839 | R113: 17.69483873 | S113: 735.0043645 | T113: -735.0043645 | U113: 111.9509924 | V113: 687.8762876 | W113: -687.8762876 | X113: 230.4521792 | Y113: 628.6256943 | Z113: -628.6256943 | AA113: 311.0436219 | AB113: 588.3299729 | AC113: -588.3299729 | AD113: =IF($D$9="Par",Path!R113,IF($D$9="Con",Path!U113,IF($D$9="Exp",Path!X113,IF($D$9="Hyp",Path!AA113)))) -> 230.4521792 | AE113: =IF(B113>0,K113,"") -> 77.47217475
J114: =J113 -> 68.54751975 | K114: =K113 -> 77.47217475 | M114: =((H112-H109)^2+(I112-I109)^2)^0.5 -> 5.374093952 | N114: =N111+M114 -> 260.0170928 | O114: =((C112-C113)^2+(D112-D113)^2)^0.5*Path!$F$3 -> 1380.795922 | P114: 690.3979612 | Q114: -690.3979612 | R114: -114.9191784 | S114: 747.8575504 | T114: -747.8575504 | U114: -25.53619794 | V114: 703.1660602 | W114: -703.1660602 | X114: 88.60587585 | Y114: 646.0950233 | Z114: -646.0950233 | AA114: 166.5452509 | AB114: 607.1253358 | AC114: -607.1253358 | AD114: =IF($D$9="Par",Path!R114,IF($D$9="Con",Path!U114,IF($D$9="Exp",Path!X114,IF($D$9="Hyp",Path!AA114)))) -> 88.60587585 | AE114: =IF(B113>0,K114,"") -> 77.47217475
C115: =Panels!C38 -> 33.14518973 | D115: =Panels!D38 -> 62.40056259 | F115: =IF(TH!$H$18="x",C115,0) -> 33.14518973 | G115: =IF(TH!$H$18="x",D115,0) -> 62.40056259 | H115: =SUM(C115:C116)/2 -> 32.57858217 | I115: =SUM(D115:D116)/2 -> 75.9702813 | J115: =IF(TH!$H$17="x",H115,0) -> 32.57858217 | K115: =IF(TH!$H$17="x",I115,0) -> 75.9702813 | M115: =M114 -> 5.374093952 | N115: 260.0170928 | O115: 1380.795922 | P115: =O115/2 -> 690.3979612 | Q115: =-P115 -> -690.3979612 | R115: -114.9191784 | S115: 747.8575504 | T115: -747.8575504 | U115: -25.53619794 | V115: 703.1660602 | W115: -703.1660602 | X115: 88.60587585 | Y115: 646.0950233 | Z115: -646.0950233 | AA115: 166.5452509 | AB115: 607.1253358 | AC115: -607.1253358 | AD115: =IF($D$9="Par",Path!R115,IF($D$9="Con",Path!U115,IF($D$9="Exp",Path!X115,IF($D$9="Hyp",Path!AA115)))) -> 88.60587585 | AE115: =IF(B116>0,K115,"") -> 75.9702813
B116: =B113+1 -> 31 | C116: =C115-(D116-D115)*E23 -> 32.01197462 | D116: =D113 -> 89.54 | F116: =IF(TH!$H$18="x",C116,0) -> 32.01197462 | G116: =IF(TH!$H$18="x",D116,0) -> 89.54 | J116: =J115 -> 32.57858217 | K116: =K115 -> 75.9702813 | M116: =M115 -> 5.374093952 | N116: 260.0170928 | O116: 1380.795922 | P116: 690.3979612 | Q116: -690.3979612 | R116: -114.9191784 | S116: 747.8575504 | T116: -747.8575504 | U116: -25.53619794 | V116: 703.1660602 | W116: -703.1660602 | X116: 88.60587585 | Y116: 646.0950233 | Z116: -646.0950233 | AA116: 166.5452509 | AB116: 607.1253358 | AC116: -607.1253358 | AD116: =IF($D$9="Par",Path!R116,IF($D$9="Con",Path!U116,IF($D$9="Exp",Path!X116,IF($D$9="Hyp",Path!AA116)))) -> 88.60587585 | AE116: =IF(B116>0,K116,"") -> 75.9702813
J117: =J116 -> 32.57858217 | K117: =K116 -> 75.9702813 | M117: =((H115-H112)^2+(I115-I112)^2)^0.5 -> 36.00027992 | N117: =N114+M117 -> 296.0173727 | O117: =((C115-C116)^2+(D115-D116)^2)^0.5*Path!$F$3 -> 1552.641994 | P117: 776.3209969 | Q117: -776.3209969 | R117: -115.2763832 | S117: 833.9591885 | T117: -833.9591885 | U117: -67.2057419 | V117: 809.9238678 | W117: -809.9238678 | X117: -0.0001204341631 | Y117: 776.3210571 | Z117: -776.3210571 | AA117: 47.55731155 | AB117: 752.5423411 | AC117: -752.5423411 | AD117: =IF($D$9="Par",Path!R117,IF($D$9="Con",Path!U117,IF($D$9="Exp",Path!X117,IF($D$9="Hyp",Path!AA117)))) -> -0.0001204341631 | AE117: =IF(B116>0,K117,"") -> 75.9702813
C118: =C115 -> 33.14518973 | D118: =D115 -> 62.40056259 | F118: =IF(TH!$H$18="x",C118,0) -> 33.14518973 | G118: =IF(TH!$H$18="x",D118,0) -> 62.40056259 | H118: =SUM(C118:C119)/2 -> 25.05058852 | I118: =SUM(D118:D119)/2 -> 75.9702813 | J118: =IF(TH!$H$17="x",H118,0) -> 25.05058852 | K118: =IF(TH!$H$17="x",I118,0) -> 75.9702813 | M118: =M117 -> 36.00027992 | N118: 296.0173727 | O118: 1552.641994 | P118: 776.3209969 | Q118: -776.3209969 | R118: -115.2763832 | S118: 833.9591885 | T118: -833.9591885 | U118: -67.2057419 | V118: 809.9238678 | W118: -809.9238678 | X118: -0.0001204341631 | Y118: 776.3210571 | Z118: -776.3210571 | AA118: 47.55731155 | AB118: 752.5423411 | AC118: -752.5423411 | AD118: =IF($D$9="Par",Path!R118,IF($D$9="Con",Path!U118,IF($D$9="Exp",Path!X118,IF($D$9="Hyp",Path!AA118)))) -> -0.0001204341631 | AE118: =IF(B119>0,K118,"") -> 75.9702813
B119: =B116+1 -> 32 | C119: =(C122+C116)/2 -> 16.95598731 | D119: =D116 -> 89.54 | F119: =IF(TH!$H$18="x",C119,0) -> 16.95598731 | G119: =IF(TH!$H$18="x",D119,0) -> 89.54 | J119: =J118 -> 25.05058852 | K119: =K118 -> 75.9702813 | M119: =M118 -> 36.00027992 | N119: 296.0173727 | O119: 1552.641994 | P119: 776.3209969 | Q119: -776.3209969 | R119: -115.2763832 | S119: 833.9591885 | T119: -833.9591885 | U119: -67.2057419 | V119: 809.9238678 | W119: -809.9238678 | X119: -0.0001204341631 | Y119: 776.3210571 | Z119: -776.3210571 | AA119: 47.55731155 | AB119: 752.5423411 | AC119: -752.5423411 | AD119: =IF($D$9="Par",Path!R119,IF($D$9="Con",Path!U119,IF($D$9="Exp",Path!X119,IF($D$9="Hyp",Path!AA119)))) -> -0.0001204341631 | AE119: =IF(B119>0,K119,"") -> 75.9702813
J120: =J119 -> 25.05058852 | K120: =K119 -> 75.9702813 | M120: =((H118-H115)^2+(I118-I115)^2)^0.5 -> 7.527993655 | N120: =N117+M120 -> 303.5453664 | O120: =((C118-C119)^2+(D118-D119)^2)^0.5*Path!$F$3 -> 1806.327754 | P120: 903.1638769 | Q120: -903.1638769 | R120: 102.4000689 | S120: 851.9638425 | T120: -851.9638425 | U120: 139.9250722 | V120: 833.2013408 | W120: -833.2013408 | X120: 192.9102007 | Y120: 806.7087766 | Z120: -806.7087766 | AA120: 230.847272 | AB120: 787.7402409 | AC120: -787.7402409 | AD120: =IF($D$9="Par",Path!R120,IF($D$9="Con",Path!U120,IF($D$9="Exp",Path!X120,IF($D$9="Hyp",Path!AA120)))) -> 192.9102007 | AE120: =IF(B119>0,K120,"") -> 75.9702813
C121: =C118 -> 33.14518973 | D121: =D118 -> 62.40056259 | F121: =IF(TH!$H$18="x",C121,0) -> 33.14518973 | G121: =IF(TH!$H$18="x",D121,0) -> 62.40056259 | H121: =SUM(C121:C122)/2 -> 17.52259486 | I121: =SUM(D121:D122)/2 -> 68.85925895 | J121: =IF(TH!$H$17="x",H121,0) -> 17.52259486 | K121: =IF(TH!$H$17="x",I121,0) -> 68.85925895 | M121: =M120 -> 7.527993655 | N121: 303.5453664 | O121: 1806.327754 | P121: 903.1638769 | Q121: -903.1638769 | R121: 102.4000689 | S121: 851.9638425 | T121: -851.9638425 | U121: 139.9250722 | V121: 833.2013408 | W121: -833.2013408 | X121: 192.9102007 | Y121: 806.7087766 | Z121: -806.7087766 | AA121: 230.847272 | AB121: 787.7402409 | AC121: -787.7402409 | AD121: =IF($D$9="Par",Path!R121,IF($D$9="Con",Path!U121,IF($D$9="Exp",Path!X121,IF($D$9="Hyp",Path!AA121)))) -> 192.9102007 | AE121: =IF(B122>0,K121,"") -> 68.85925895
B122: =B119+1 -> 33 | C122: =Panels!C33 -> 1.9 | D122: =(D119+D125)/2 -> 75.3179553 | F122: =IF(TH!$H$18="x",C122,0) -> 1.9 | G122: =IF(TH!$H$18="x",D122,0) -> 75.3179553 | J122: =J121 -> 17.52259486 | K122: =K121 -> 68.85925895 | M122: =M121 -> 7.527993655 | N122: 303.5453664 | O122: 1806.327754 | P122: 903.1638769 | Q122: -903.1638769 | R122: 102.4000689 | S122: 851.9638425 | T122: -851.9638425 | U122: 139.9250722 | V122: 833.2013408 | W122: -833.2013408 | X122: 192.9102007 | Y122: 806.7087766 | Z122: -806.7087766 | AA122: 230.847272 | AB122: 787.7402409 | AC122: -787.7402409 | AD122: =IF($D$9="Par",Path!R122,IF($D$9="Con",Path!U122,IF($D$9="Exp",Path!X122,IF($D$9="Hyp",Path!AA122)))) -> 192.9102007 | AE122: =IF(B122>0,K122,"") -> 68.85925895
J123: =J122 -> 17.52259486 | K123: =K122 -> 68.85925895 | M123: =((H121-H118)^2+(I121-I118)^2)^0.5 -> 10.35554573 | N123: =N120+M123 -> 313.9009121 | O123: =((C121-C122)^2+(D121-D122)^2)^0.5*Path!$F$3 -> 1932.58367 | P123: 966.2918352 | Q123: -966.2918352 | R123: 179.1214013 | S123: 876.7311346 | T123: -876.7311346 | U123: 201.0620898 | V123: 865.7607903 | W123: -865.7607903 | X123: 231.6571104 | Y123: 850.46328 | Z123: -850.46328 | AA123: 254.1663499 | AB123: 839.2086603 | AC123: -839.2086603 | AD123: =IF($D$9="Par",Path!R123,IF($D$9="Con",Path!U123,IF($D$9="Exp",Path!X123,IF($D$9="Hyp",Path!AA123)))) -> 231.6571104 | AE123: =IF(B122>0,K123,"") -> 68.85925895
C124: =C121 -> 33.14518973 | D124: =D121 -> 62.40056259 | F124: =IF(TH!$H$18="x",C124,0) -> 33.14518973 | G124: =IF(TH!$H$18="x",D124,0) -> 62.40056259 | H124: =SUM(C124:C125)/2 -> 17.52259486 | I124: =SUM(D124:D125)/2 -> 61.7482366 | J124: =IF(TH!$H$17="x",H124,0) -> 17.52259486 | K124: =IF(TH!$H$17="x",I124,0) -> 61.7482366 | M124: =M123 -> 10.35554573 | N124: 313.9009121 | O124: 1932.58367 | P124: 966.2918352 | Q124: -966.2918352 | R124: 179.1214013 | S124: 876.7311346 | T124: -876.7311346 | U124: 201.0620898 | V124: 865.7607903 | W124: -865.7607903 | X124: 231.6571104 | Y124: 850.46328 | Z124: -850.46328 | AA124: 254.1663499 | AB124: 839.2086603 | AC124: -839.2086603 | AD124: =IF($D$9="Par",Path!R124,IF($D$9="Con",Path!U124,IF($D$9="Exp",Path!X124,IF($D$9="Hyp",Path!AA124)))) -> 231.6571104 | AE124: =IF(B125>0,K124,"") -> 61.7482366
B125: =B122+1 -> 34 | C125: =C122 -> 1.9 | D125: =D121-(C121-C122)*E23 -> 61.09591061 | F125: =IF(TH!$H$18="x",C125,0) -> 1.9 | G125: =IF(TH!$H$18="x",D125,0) -> 61.09591061 | J125: =J124 -> 17.52259486 | K125: =K124 -> 61.7482366 | M125: =M124 -> 10.35554573 | N125: 313.9009121 | O125: 1932.58367 | P125: 966.2918352 | Q125: -966.2918352 | R125: 179.1214013 | S125: 876.7311346 | T125: -876.7311346 | U125: 201.0620898 | V125: 865.7607903 | W125: -865.7607903 | X125: 231.6571104 | Y125: 850.46328 | Z125: -850.46328 | AA125: 254.1663499 | AB125: 839.2086603 | AC125: -839.2086603 | AD125: =IF($D$9="Par",Path!R125,IF($D$9="Con",Path!U125,IF($D$9="Exp",Path!X125,IF($D$9="Hyp",Path!AA125)))) -> 231.6571104 | AE125: =IF(B125>0,K125,"") -> 61.7482366
J126: =J125 -> 17.52259486 | K126: =K125 -> 61.7482366 | M126: =((H124-H121)^2+(I124-I121)^2)^0.5 -> 7.111022349 | N126: =N123+M126 -> 321.0119344 | O126: =((C124-C125)^2+(D124-D125)^2)^0.5*Path!$F$3 -> 1787.531294 | P126: 893.7656472 | Q126: -893.7656472 | R126: 0.05425219382 | S126: =(($D$5-$D$4)*(N126-$E$4)/($E$5-$E$4)+$D$4)/2 -> 893.7385211 | T126: =-S126 -> -893.7385211 | U126: 10.57061254 | V126: 888.4803409 | W126: =-V126 -> -888.4803409 | X126: 23.78003616 | Y126: =($D$4*EXP($O$3*(N126-$E$4)))/2 -> 881.8756291 | Z126: =-Y126 -> -881.8756291 | AA126: 34.10096405 | AB126: 876.7151651 | AC126: =-AB126 -> -876.7151651 | AD126: =IF($D$9="Par",Path!R126,IF($D$9="Con",Path!U126,IF($D$9="Exp",Path!X126,IF($D$9="Hyp",Path!AA126)))) -> 23.78003616 | AE126: =IF(B125>0,K126,"") -> 61.7482366
C127: =IF(Panels!S27>C124,Panels!S27,C124) -> 33.6014044 | D127: =IF(Panels!T27<D124,Panels!T27,D124) -> 56.94713081 | F127: =IF(TH!$H$18="x",C127,0) -> 33.6014044 | G127: =IF(TH!$H$18="x",D127,0) -> 56.94713081 | H127: =SUM(C127:C128)/2 -> 17.7507022 | I127: =SUM(D127:D128)/2 -> 56.28528013 | J127: =IF(TH!$H$17="x",H127,0) -> 17.7507022 | K127: =IF(TH!$H$17="x",I127,0) -> 56.28528013 | M127: =M126 -> 7.111022349 | N127: 321.0119344 | O127: 1787.531294 | P127: =O127/2 -> 893.7656472 | Q127: =-P127 -> -893.7656472 | R127: =($P127-S127)*2 -> 0.05425219382 | S127: 893.7385211 | T127: -893.7385211 | U127: =($P127-V127)*2 -> 10.57061254 | V127: 888.4803409 | W127: =-V127 -> -888.4803409 | X127: =($P127-Y127)*2 -> 23.78003616 | Y127: =($D$4*EXP($O$3*(N127-$E$4)))/2 -> 881.8756291 | Z127: =-Y127 -> -881.8756291 | AA127: =($P127-AB127)*2 -> 34.10096405 | AB127: 876.7151651 | AC127: =-AB127 -> -876.7151651 | AD127: =IF($D$9="Par",Path!R127,IF($D$9="Con",Path!U127,IF($D$9="Exp",Path!X127,IF($D$9="Hyp",Path!AA127)))) -> 23.78003616 | AE127: =IF(B128>0,K127,"") -> 56.28528013 | AH127: =AH133 -> Panel A (bottom) | AI127: =AI133 -> 1.9 | AJ127: =AJ133 -> 0 | AK127: =Panels!C9 -> 1.9 | AL127: =Panels!D9 -> 91.44 | AM127: =IF(AK127-AI127<>0,(AL127-AJ127)/(AK127-AI127),"vertical") -> vertical | AN127: =IF(AM127<>"vertical",(AL127*AI127-AJ127*AK127)/(AI127-AK127),AJ127) -> 0
A128: S3 | B128: =B125+1 -> 35 | C128: =AO128 -> 1.9 | D128: =AP128 -> 55.62342944 | F128: =IF(TH!$H$18="x",C128,0) -> 1.9 | G128: =IF(TH!$H$18="x",D128,0) -> 55.62342944 | J128: =J127 -> 17.7507022 | K128: =K127 -> 56.28528013 | M128: =M127 -> 7.111022349 | N128: 321.0119344 | O128: 1787.531294 | P128: 893.7656472 | Q128: -893.7656472 | R128: 0.05425219382 | S128: 893.7385211 | T128: -893.7385211 | U128: 10.57061254 | V128: 888.4803409 | W128: -888.4803409 | X128: 23.78003616 | Y128: 881.8756291 | Z128: -881.8756291 | AA128: 34.10096405 | AB128: 876.7151651 | AC128: -876.7151651 | AD128: =IF($D$9="Par",Path!R128,IF($D$9="Con",Path!U128,IF($D$9="Exp",Path!X128,IF($D$9="Hyp",Path!AA128)))) -> 23.78003616 | AE128: =IF(B128>0,K128,"") -> 56.28528013 | AH128: =AH134 -> Panel F (baffle) | AI128: =C127 -> 33.6014044 | AJ128: =D127 -> 56.94713081 | AK128: =AI128-10*$E$21 -> 23.61011054 | AL128: =AJ128-10*$E$22 -> 56.52994143 | AM128: =(AL128-AJ128)/(AK128-AI128) -> 0.04175529099 | AN128: =(AL128*AI128-AJ128*AK128)/(AI128-AK128) -> 55.54409439 | AO128: =IF(AM127<>"vertical",(AN127-AN128)/(AM128-AM127),AI127) -> 1.9 | AP128: =AO128*AM128+AN128 -> 55.62342944
J129: =J128 -> 17.7507022 | K129: =K128 -> 56.28528013 | M129: =((H127-H124)^2+(I127-I124)^2)^0.5 -> 5.467716743 | N129: =N126+M129 -> 326.4796512 | O129: =((C127-C128)^2+(D127-D128)^2)^0.5*Path!$F$3 -> 1813.631248 | P129: 906.815624 | Q129: -906.815624 | R129: 0 | S129: =(($D$7-$D$5)*($N129-$E$5)/($E$7-$E$5)+$D$5)/2 -> 906.815624 | T129: =-S129 -> -906.815624 | U129: 1.331883403 | V129: 906.1496823 | W129: -906.1496823 | X129: 6.821210263e-13 | Y129: 906.815624 | Z129: -906.815624 | AA129: 2.669201422e-06 | AB129: 906.8156227 | AC129: -906.8156227 | AD129: =IF($D$9="Par",Path!R129,IF($D$9="Con",Path!U129,IF($D$9="Exp",Path!X129,IF($D$9="Hyp",Path!AA129)))) -> 6.821210263e-13 | AE129: =IF(B128>0,K129,"") -> 56.28528013
C130: =Panels!S21 -> 35.87769212 | D130: =Panels!T21 -> 29.73717787 | F130: =IF(TH!$H$18="x",C130,0) -> 35.87769212 | G130: =IF(TH!$H$18="x",D130,0) -> 29.73717787 | H130: =SUM(C130:C131)/2 -> 18.88884606 | I130: =SUM(D130:D131)/2 -> 29.02780366 | J130: =IF(TH!$H$17="x",H130,0) -> 18.88884606 | K130: =IF(TH!$H$17="x",I130,0) -> 29.02780366 | M130: =M129 -> 5.467716743 | N130: 326.4796512 | O130: 1813.631248 | P130: 906.815624 | Q130: -906.815624 | R130: 0 | S130: 906.815624 | T130: -906.815624 | U130: 0 | V130: =(($D$7-$D$5)*($N130-$E$5)/($E$7-$E$5)+$D$5)/2 -> 906.815624 | W130: -906.815624 | X130: 0 | Y130: =(($D$7-$D$5)*($N130-$E$5)/($E$7-$E$5)+$D$5)/2 -> 906.815624 | Z130: -906.815624 | AA130: 0 | AB130: =(($D$7-$D$5)*($N130-$E$5)/($E$7-$E$5)+$D$5)/2 -> 906.815624 | AC130: -906.815624 | AD130: =IF($D$9="Par",Path!R130,IF($D$9="Con",Path!U130,IF($D$9="Exp",Path!X130,IF($D$9="Hyp",Path!AA130)))) -> 0 | AE130: =IF(B131>0,K130,"") -> 29.02780366
A131: S4 | B131: =B128+1 -> 36 | C131: =Panels!C8 -> 1.9 | D131: =D130-(C130-C131)*$E$23 -> 28.31842944 | F131: =IF(TH!$H$18="x",C131,0) -> 1.9 | G131: =IF(TH!$H$18="x",D131,0) -> 28.31842944 | J131: =J130 -> 18.88884606 | K131: =K130 -> 29.02780366 | M131: =M130 -> 5.467716743 | N131: 326.4796512 | O131: 1813.631248 | P131: 906.815624 | Q131: -906.815624 | R131: 0 | S131: 906.815624 | T131: -906.815624 | U131: 0 | V131: 906.815624 | W131: -906.815624 | X131: 0 | Y131: 906.815624 | Z131: -906.815624 | AA131: 0 | AB131: 906.815624 | AC131: -906.815624 | AD131: =IF($D$9="Par",Path!R131,IF($D$9="Con",Path!U131,IF($D$9="Exp",Path!X131,IF($D$9="Hyp",Path!AA131)))) -> 0 | AE131: =IF(B131>0,K131,"") -> 29.02780366
J132: =J131 -> 18.88884606 | K132: =K131 -> 29.02780366 | M132: =((H130-H127)^2+(I130-I127)^2)^0.5 -> 27.28122789 | N132: =N129+M132 -> 353.7608791 | O132: =((C130-C131)^2+(D130-D131)^2)^0.5*Path!$F$3 -> 1943.857231 | P132: 971.9286154 | Q132: -971.9286154 | R132: 2.273736754e-13 | S132: 971.9286154 | T132: -971.9286154 | U132: 2.273736754e-13 | V132: 971.9286154 | W132: -971.9286154 | X132: 2.273736754e-13 | Y132: 971.9286154 | Z132: -971.9286154 | AA132: 2.273736754e-13 | AB132: 971.9286154 | AC132: -971.9286154 | AD132: =IF($D$9="Par",Path!R132,IF($D$9="Con",Path!U132,IF($D$9="Exp",Path!X132,IF($D$9="Hyp",Path!AA132)))) -> 2.273736754e-13 | AE132: =IF(B131>0,K132,"") -> 29.02780366
C133: =AO134 -> 38.23846463 | D133: =AP134 -> 1.517323165 | F133: =IF(TH!$H$18="x",C133,0) -> 38.23846463 | G133: =IF(TH!$H$18="x",D133,0) -> 1.517323165 | H133: =SUM(C133:C134)/2 -> 20.06923231 | I133: =SUM(D133:D134)/2 -> 0.7586615823 | J133: =IF(TH!$H$17="x",H133,0) -> 20.06923231 | K133: =IF(TH!$H$17="x",I133,0) -> 0.7586615823 | M133: =M132 -> 27.28122789 | N133: 353.7608791 | O133: 1943.857231 | P133: 971.9286154 | Q133: -971.9286154 | R133: 2.273736754e-13 | S133: 971.9286154 | T133: -971.9286154 | U133: 2.273736754e-13 | V133: 971.9286154 | W133: -971.9286154 | X133: 2.273736754e-13 | Y133: 971.9286154 | Z133: -971.9286154 | AA133: 2.273736754e-13 | AB133: 971.9286154 | AC133: -971.9286154 | AD133: =IF($D$9="Par",Path!R133,IF($D$9="Con",Path!U133,IF($D$9="Exp",Path!X133,IF($D$9="Hyp",Path!AA133)))) -> 2.273736754e-13 | AE133: =IF(B134>0,K133,"") -> 0.7586615823 | AH133: =Panels!A6 -> Panel A (bottom) | AI133: =Panels!C8 -> 1.9 | AJ133: =Panels!D8 -> 0 | AK133: =AI133+10*$E$21 -> 11.89129386 | AL133: =AJ133+10*$E$22 -> 0.4171893825 | AM133: =IF(AK133-AI133<>0,(AL133-AJ133)/(AK133-AI133),"vertical") -> 0.04175529099 | AN133: =IF(AM133<>"vertical",(AL133*AI133-AJ133*AK133)/(AI133-AK133),AJ133) -> -0.07933505287
B134: =B131+1 -> 37 | C134: =Panels!C8 -> 1.9 | D134: =Panels!D8 -> 0 | F134: =IF(TH!$H$18="x",C134,0) -> 1.9 | G134: =IF(TH!$H$18="x",D134,0) -> 0 | J134: =J133 -> 20.06923231 | K134: =K133 -> 0.7586615823 | M134: =M133 -> 27.28122789 | N134: 353.7608791 | O134: 1943.857231 | P134: 971.9286154 | Q134: -971.9286154 | R134: 2.273736754e-13 | S134: 971.9286154 | T134: -971.9286154 | U134: 2.273736754e-13 | V134: 971.9286154 | W134: -971.9286154 | X134: 2.273736754e-13 | Y134: 971.9286154 | Z134: -971.9286154 | AA134: 2.273736754e-13 | AB134: 971.9286154 | AC134: -971.9286154 | AD134: =IF($D$9="Par",Path!R134,IF($D$9="Con",Path!U134,IF($D$9="Exp",Path!X134,IF($D$9="Hyp",Path!AA134)))) -> 2.273736754e-13 | AE134: =IF(B134>0,K134,"") -> 0.7586615823 | AH134: =Panels!A36 -> Panel F (baffle) | AI134: =Panels!C38 -> 33.14518973 | AJ134: =Panels!D38 -> 62.40056259 | AK134: =Panels!C39 -> 38.37864915 | AL134: =Panels!D39 -> -0.1583939452 | AM134: =(AL134-AJ134)/(AK134-AI134) -> -11.95365272 | AN134: =(AL134*AI134-AJ134*AK134)/(AI134-AK134) -> 458.6066501 | AO134: =IF(AM133<>"vertical",(AN133-AN134)/(AM134-AM133),AI133) -> 38.23846463 | AP134: =AO134*AM134+AN134 -> 1.517323165
J135: =J134 -> 20.06923231 | K135: =K134 -> 0.7586615823 | M135: =((H133-H130)^2+(I133-I130)^2)^0.5 -> 28.29377503 | N135: =N132+M135 -> 382.0546541 | O135: =((C133-C134)^2+(D133-D134)^2)^0.5*Path!$F$3 -> 2078.916572 | P135: 1039.458286 | Q135: -1039.458286 | R135: 4.547473509e-13 | S135: 1039.458286 | T135: -1039.458286 | U135: 4.547473509e-13 | V135: 1039.458286 | W135: -1039.458286 | X135: 4.547473509e-13 | Y135: 1039.458286 | Z135: -1039.458286 | AA135: 4.547473509e-13 | AB135: 1039.458286 | AC135: -1039.458286 | AD135: =IF($D$9="Par",Path!R135,IF($D$9="Con",Path!U135,IF($D$9="Exp",Path!X135,IF($D$9="Hyp",Path!AA135)))) -> 4.547473509e-13 | AE135: =IF(B134>0,K135,"") -> 0.7586615823
C136: =(Panels!C39+C133)/2 -> 38.30855689 | D136: =(Panels!D39+D133)/2 -> 0.6794646097 | F136: =IF(TH!$H$18="x",C136,0) -> 38.30855689 | G136: =IF(TH!$H$18="x",D136,0) -> 0.6794646097 | H136: =SUM(C136:C137)/2 -> 20.10427845 | I136: =SUM(D136:D137)/2 -> -0.080660334 | J136: =IF(TH!$H$17="x",H136,0) -> 20.10427845 | K136: =IF(TH!$H$17="x",I136,0) -> -0.080660334 | M136: =M135 -> 28.29377503 | N136: 382.0546541 | O136: 2078.916572 | P136: 1039.458286 | Q136: -1039.458286 | R136: 4.547473509e-13 | S136: 1039.458286 | T136: -1039.458286 | U136: 4.547473509e-13 | V136: 1039.458286 | W136: -1039.458286 | X136: 4.547473509e-13 | Y136: 1039.458286 | Z136: -1039.458286 | AA136: 4.547473509e-13 | AB136: 1039.458286 | AC136: -1039.458286 | AD136: =IF($D$9="Par",Path!R136,IF($D$9="Con",Path!U136,IF($D$9="Exp",Path!X136,IF($D$9="Hyp",Path!AA136)))) -> 4.547473509e-13 | AE136: =IF(B137>0,K136,"") -> -0.080660334 | AH136: =Panels!A6 -> Panel A (bottom) | AI136: =Panels!C8 -> 1.9 | AJ136: =Panels!D8 -> 0 | AK136: =Panels!C9 -> 1.9 | AL136: =Panels!D9 -> 91.44 | AM136: =IF(AK136-AI136<>0,(AL136-AJ136)/(AK136-AI136),"vertical") -> vertical | AN136: =IF(AM136<>"vertical",(AL136*AI136-AJ136*AK136)/(AI136-AK136),AJ136) -> 0
A137: S5 | B137: =B134+1 -> 38 | C137: =AO137 -> 1.9 | D137: =AP137 -> -0.8407852777 | F137: =IF(TH!$H$18="x",C137,0) -> 1.9 | G137: =IF(TH!$H$18="x",D137,0) -> -0.8407852777 | J137: =J136 -> 20.10427845 | K137: =K136 -> -0.080660334 | M137: =M136 -> 28.29377503 | N137: 382.0546541 | O137: 2078.916572 | P137: 1039.458286 | Q137: -1039.458286 | R137: 4.547473509e-13 | S137: 1039.458286 | T137: -1039.458286 | U137: 4.547473509e-13 | V137: 1039.458286 | W137: -1039.458286 | X137: 4.547473509e-13 | Y137: 1039.458286 | Z137: -1039.458286 | AA137: 4.547473509e-13 | AB137: 1039.458286 | AC137: -1039.458286 | AD137: =IF($D$9="Par",Path!R137,IF($D$9="Con",Path!U137,IF($D$9="Exp",Path!X137,IF($D$9="Hyp",Path!AA137)))) -> 4.547473509e-13 | AE137: =IF(B137>0,K137,"") -> -0.080660334 | AH137: Sample point 10 | AI137: =C136 -> 38.30855689 | AJ137: =D136 -> 0.6794646097 | AK137: =AI137-10*$E$21 -> 28.31726303 | AL137: =AJ137-10*$E$22 -> 0.2622752272 | AM137: =(AL137-AJ137)/(AK137-AI137) -> 0.04175529099 | AN137: =(AL137*AI137-AJ137*AK137)/(AI137-AK137) -> -0.9201203306 | AO137: =IF(AM136<>"vertical",(AN136-AN137)/(AM137-AM136),AI136) -> 1.9 | AP137: =AO137*AM137+AN137 -> -0.8407852777
J138: =J137 -> 20.10427845 | K138: =K137 -> -0.080660334 | M138: =((H136-H133)^2+(I136-I133)^2)^0.5 -> 0.8400532783 | N138: =N135+M138 -> 382.8947074 | O138: =((C136-C137)^2+(D136-D137)^2)^0.5*Path!$F$3 -> 2082.926537 | P138: 1041.463268 | Q138: -1041.463268 | R138: 0 | S138: 1041.463268 | T138: -1041.463268 | U138: 0 | V138: 1041.463268 | W138: -1041.463268 | X138: 0 | Y138: 1041.463268 | Z138: -1041.463268 | AA138: 0 | AB138: 1041.463268 | AC138: -1041.463268 | AD138: =IF($D$9="Par",Path!R138,IF($D$9="Con",Path!U138,IF($D$9="Exp",Path!X138,IF($D$9="Hyp",Path!AA138)))) -> 0 | AE138: =IF(B137>0,K138,"") -> -0.080660334
B140: =B137+1 -> 39
B143: =B140+1 -> 40
B146: =B143+1 -> 41

Sheet Guides
A5: Guides | C5: x | D5: y | F5: x | G5: y | T5: Intersection points | U5: x1 | V5: y1 | W5: x2 | X5: y2 | Y5: a | Z5: b | AA5: x | AB5: y
C6: =AA7 -> 40.27203537 | D6: =AB7 -> 0 | F6: =IF(TH!$H$20="x",C6,0) -> 0 | G6: =IF(TH!$H$20="x",D6,0) -> 0 | T6: =Panels!A36 -> Panel F (baffle) | U6: =Panels!C36 -> 40.27203537 | V6: =Panels!D36 -> 0 | W6: =Panels!C37 -> 35.03857594 | X6: =Panels!D37 -> 62.55895654 | Y6: =(X6-V6)/(W6-U6) -> -11.95365272 | Z6: =(X6*U6-V6*W6)/(U6-W6) -> 481.3979253
B7: 1 | C7: =AA10 -> 32.62249074 | D7: =AB10 -> 91.44 | F7: =IF(TH!$H$20="x",C7,0) -> 0 | G7: =IF(TH!$H$20="x",D7,0) -> 0 | T7: =Panels!A18 -> Panel C (sides) | U7: =Panels!C20 -> 0 | V7: =Panels!D20 -> 0 | W7: =Panels!C21 -> 91.44 | X7: =Panels!D21 -> 0 | Y7: =(X7-V7)/(W7-U7) -> 0 | Z7: =(X7*U7-V7*W7)/(U7-W7) -> 0 | AA7: =(Z6-Z7)/(Y7-Y6) -> 40.27203537 | AB7: =AA7*Y7+Z7 -> 0
C9: =AA13 -> 0 | D9: =AB13 -> 59.62775411 | F9: =IF(TH!$H$20="x",C9,0) -> 0 | G9: =IF(TH!$H$20="x",D9,0) -> 0 | T9: =T6 -> Panel F (baffle) | U9: =U6 -> 40.27203537 | V9: =V6 -> 0 | W9: =W6 -> 35.03857594 | X9: =X6 -> 62.55895654 | Y9: =(X9-V9)/(W9-U9) -> -11.95365272 | Z9: =(X9*U9-V9*W9)/(U9-W9) -> 481.3979253
B10: 2 | C10: =AA16 -> 91.44 | D10: =AB16 -> 67.27729874 | F10: =IF(TH!$H$20="x",C10,0) -> 0 | G10: =IF(TH!$H$20="x",D10,0) -> 0 | T10: =Panels!A18 -> Panel C (sides) | U10: =Panels!C19 -> 0 | V10: =Panels!D19 -> 91.44 | W10: =Panels!C18 -> 91.44 | X10: =Panels!D18 -> 91.44 | Y10: =(X10-V10)/(W10-U10) -> 0 | Z10: =(X10*U10-V10*W10)/(U10-W10) -> 91.44 | AA10: =(Z9-Z10)/(Y10-Y9) -> 32.62249074 | AB10: =AA10*Y10+Z10 -> 91.44
C12: =Panels!C39 -> 38.37864915 | D12: =Panels!D39 -> -0.1583939452 | F12: =IF(TH!$H$20="x",C12,0) -> 0 | G12: =IF(TH!$H$20="x",D12,0) -> 0 | T12: =Panels!A42 -> Panel G (2nd inside) | U12: =Panels!C46 -> 35.03857594 | V12: =Panels!D46 -> 62.55895654 | W12: =Panels!C45 -> 67.85559243 | X12: =Panels!D45 -> 65.30431122 | Y12: =(X12-V12)/(W12-U12) -> 0.08365643733 | Z12: =(X12*U12-V12*W12)/(U12-W12) -> 59.62775411
B13: 3 | C13: =(D13-Panels!D38)*(Panels!C39-Panels!C38)/(Panels!D39-Panels!D38)+Panels!C38 -> 38.36539848 | D13: =Panels!D20 -> 0 | F13: =IF(TH!$H$20="x",C13,0) -> 0 | G13: =IF(TH!$H$20="x",D13,0) -> 0 | T13: =Panels!A18 -> Panel C (sides) | U13: =Panels!C20 -> 0 | V13: =Panels!D20 -> 0 | W13: =Panels!C19 -> 0 | X13: =Panels!D19 -> 91.44 | AA13: =U13 -> 0 | AB13: =Z12+Y12*U13 -> 59.62775411
C15: =Panels!C54 -> 56.13420674 | D15: =D13 -> 0 | F15: =IF(TH!$H$20="x",C15,0) -> 0 | G15: =IF(TH!$H$20="x",D15,0) -> 0 | T15: =T12 -> Panel G (2nd inside) | U15: 35.03857594 | V15: 62.55895654 | W15: 67.85559243 | X15: 65.30431122 | Y15: 0.08365643733 | Z15: 59.62775411
B16: 4 | C16: =C15 -> 56.13420674 | D16: =D7 -> 91.44 | F16: =IF(TH!$H$20="x",C16,0) -> 0 | G16: =IF(TH!$H$20="x",D16,0) -> 0 | T16: =Panels!A18 -> Panel C (sides) | U16: =Panels!C21 -> 91.44 | V16: =Panels!D21 -> 0 | W16: =Panels!C22 -> 91.44 | X16: =Panels!D22 -> 91.44 | AA16: =U16 -> 91.44 | AB16: =Z15+Y15*U16 -> 67.27729874
C18: =AA19 -> 73.31871845 | D18: =AB19 -> 0 | F18: =IF(TH!$H$20="x",C18,0) -> 0 | G18: =IF(TH!$H$20="x",D18,0) -> 0 | T18: =Panels!A60 -> Panel J (5th inside) | U18: =Panels!C60 -> 67.85559243 | V18: =Panels!D60 -> 65.30431122 | W18: =Panels!C61 -> 71.91953626 | X18: =Panels!D61 -> 16.72533796 | Y18: =(X18-V18)/(W18-U18) -> -11.95365272 | Z18: =(X18*U18-V18*W18)/(U18-W18) -> 876.4264985
B19: 5 | C19: =AA22 -> 65.66917382 | D19: =AB22 -> 91.44 | F19: =IF(TH!$H$20="x",C19,0) -> 0 | G19: =IF(TH!$H$20="x",D19,0) -> 0 | T19: =Panels!A18 -> Panel C (sides) | U19: =Panels!C20 -> 0 | V19: =Panels!D20 -> 0 | W19: =Panels!C21 -> 91.44 | X19: =Panels!D21 -> 0 | Y19: =(X19-V19)/(W19-U19) -> 0 | Z19: =(X19*U19-V19*W19)/(U19-W19) -> 0 | AA19: =(Z18-Z19)/(Y19-Y18) -> 73.31871845 | AB19: =AA19*Y19+Z19 -> 0
T21: =T18 -> Panel J (5th inside) | U21: =U18 -> 67.85559243 | V21: =V18 -> 65.30431122 | W21: 71.91953626 | X21: 16.72533796 | Y21: =(X21-V21)/(W21-U21) -> -11.95365272 | Z21: =(X21*U21-V21*W21)/(U21-W21) -> 876.4264985
B22: 6 | T22: =T19 -> Panel C (sides) | U22: =Panels!C18 -> 91.44 | V22: =Panels!D18 -> 91.44 | W22: =Panels!C19 -> 0 | X22: =Panels!D19 -> 91.44 | Y22: =(X22-V22)/(W22-U22) -> 0 | Z22: =(X22*U22-V22*W22)/(U22-W22) -> 91.44 | AA22: =(Z21-Z22)/(Y22-Y21) -> 65.66917382 | AB22: =AA22*Y22+Z22 -> 91.44
C24: =(D24-Panels!D51)*(Panels!C50-Panels!C51)/(Panels!D50-Panels!D51)+Panels!C51 -> 47.34704794 | D24: =Panels!D20 -> 0 | F24: =IF(TH!$H$20="x",C24,0) -> 0 | G24: =IF(TH!$H$20="x",D24,0) -> 0
B25: 7 | C25: =(D25-Panels!D51)*(Panels!C50-Panels!C51)/(Panels!D50-Panels!D51)+Panels!C51 -> 39.69750331 | D25: =Panels!D19 -> 91.44 | F25: =IF(TH!$H$20="x",C25,0) -> 0 | G25: =IF(TH!$H$20="x",D25,0) -> 0
B28: 8
B31: 9
